Cogmind - Beta 9.1 @@@ ROGUE MODE // 2019.11.05 @ 19:06:44 Player: Valguris Result: Destroyed by A5 with Heavy Tesla Rifle Performance ------------- Evolutions (9) 4500 Regions Visited (35) 7000 Robots Destroyed (531) 2655 Value Destroyed (27863) 27863 Prototype IDs (259) 5180 Alien Tech Used (7) 1400 Bonus (54514) 54514 TOTAL SCORE: 103112 Bonus ------- Triggered Max Security 1000 High Alert Combat Kills 12778 Follower Combat Kills 6286 Network Hubs Disabled 800 Aligned with FarCom 300 Met Data Miner 300 Used Data Conduit 3000 Met Zhirov 300 Built Enhanced Grunts 300 A7 Reached Mainframe 300 Met R17 at Cetus 500 Found Hidden Lab 3000 Decrypted A0 Command 3000 Scanned by Researcher 500 Pursued by Intercept 3000 Destroyed MAIN.C Guards 500 Met MAIN.C 5000 Hacked MAIN.C 300 Destroyed MAIN.C Shell 5000 Destroyed MAIN.C 10000 Met Architect 300 Destroyed A6 400 Friendly Fire -2350 Cogmind --------- Core Integrity 0/1600 Matter 280/300 Energy 236/240 System Corruption 23% Temperature Cool (4) Location -1/Access_0 Parts ------- Power (2) Zero-point Reactor Propulsion (4) Combat Antigrav System Combat Linear Gravjet Utility (14) Experimental Coolant Injector Large Storage Unit Experimental Targeting Computer Advanced Target Analyzer Experimental Core Analyzer Advanced Armor Integrity Analyzer Weapon (6) Inventory (10) EMDS Peak State ------------ Power Improved Quantum Reactor Zero-point Reactor Propulsion Combat Antigrav System Combat Linear Gravjet Combat Linear Gravjet Combat Linear Gravjet Utility Experimental Coolant Injector Large Storage Unit Large Storage Unit Experimental Energy Well Experimental Targeting Computer Advanced Target Analyzer Experimental Core Analyzer Advanced Armor Integrity Analyzer Advanced Weapon Cycler Centrium Medium Armor Plating Heavy Regenerative Plating Thermal Barrier AEGIS Remote Shield Weapon Heavy Quantum Rifle Compact HERF Cannon Compact HERF Cannon Helical Railgun Multirail Experimental Remote Datajack Inventory Zero-point Reactor Zero-point Reactor Cooled Antigrav System Cooled Antigrav System Combat Antigrav System Combat Antigrav System Combat Antigrav System Improved Particle Charger EMDS Matter Neutralizer Heavy Neutron Cannon Enhanced Nova Cannon Hardcell Cannon Graviton Cannon [Rating: 231] Favorites ----------- Power Micro Fission Core Engine Light Deuterium Engine Power Core Micro Fission Core Reactor Quantum Reactor Propulsion Wheel Treads Light Treads Leg Carbon-fiber Leg Wheel Wheel Hover Unit Combat Linear Gravjet Utility Large Storage Unit Device Long-range Terrain Scanner Storage Large Storage Unit Processor Experimental Targeting Computer Hackware Hacking Suite Protection Damper Plating Weapon Cooled Plasma Cannon Energy Gun Heavy Quantum Rifle Energy Cannon Cooled Plasma Cannon Ballistic Gun Assault Rifle Ballistic Cannon Graviton Cannon Launcher Mini Grenade Launcher Special Weapon Experimental Remote Datajack Piercing Weapon Force Lance Special Melee Weapon Advanced Datajack Build | -11 -10 -10 -10 -9 -8 -7 -7 -7 -7 -7 -7 -6 -6 -6 -6 -6 -6 -5 -5 -5 -5 -5 -5 -4 -4 -4 -4 -4 -4 -3 -3 -2 -1 -1 -1 ------- Run | Scr Mat Min Exi Min Mat Fac Was Fac Low Low Dat Pro Fac Ext Cet Arc Hub Fac Was Fac Upp Upp Zhi Pro Fac Was Fac Arm Lab Res Qua Res Acc Com Ac0 Slots Evolved 18 | . . . . . 4 2 . . . . . . 2 . . . . 2 . . . . . . 2 . . . . 2 . 2 2 . . Power 1 | . . . . . . . . . . . . . 1 . . . . . . . . . . . . . . . . . . . . . . Propulsion 1 | . . . . . 1 . . . . . . . . . . . . . . . . . . . . . . . . . . . . . . Utility 12 | . . . . . 3 2 . . . . . . 1 . . . . 2 . . . . . . . . . . . . . 2 2 . . Weapon 4 | . . . . . . . . . . . . . . . . . . . . . . . . . 2 . . . . 2 . . . . . Parts Attached 793 | 6 2 5 1 15 40 19 11 29 25 27 6 23 21 23 10 . 27 57 5 18 18 11 5 10 35 10 23 37 14 29 58 27 8 115 23 Power 43 | 1 . 1 . 2 1 . . 2 . . . 1 2 . 2 . 1 5 . . 1 . . . 2 2 1 4 . 1 3 2 . 5 4 Engine 10 | 1 . 1 . 2 . . . 1 . . . 1 1 . . . . 2 . . 1 . . . . . . . . . . . . . . Core 9 | . . . . . 1 . . 1 . . . . . . . . . 1 . . . . . . 2 1 . 2 . . 1 . . . . Reactor 24 | . . . . . . . . . . . . . 1 . 2 . 1 2 . . . . . . . 1 1 2 . 1 2 2 . 5 4 Propulsion 120 | 2 . . . 4 6 3 . 5 . 5 . 1 . 2 2 . 2 11 . . 1 . . 1 8 3 2 7 3 4 15 5 . 20 8 Treads 31 | 2 . . . 1 2 . . . . . . . . . 2 . 2 2 . . . . . . 1 . . 1 3 . 6 3 . 6 . Leg 7 | . . . . 2 1 . . . . 2 . . . . . . . . . . . . . . . . . . . . 2 . . . . Wheel 55 | . . . . 1 3 3 . 3 . 3 . 1 . 2 . . . 9 . . 1 . . 1 7 2 2 6 . 4 7 . . . . Hover 27 | . . . . . . . . 2 . . . . . . . . . . . . . . . . . 1 . . . . . 2 . 14 8 Flight . | . . . . . . . . . . . . . . . . . . . . . . . . . . . . . . . . . . . . Utility 305 | 1 2 1 1 . 13 2 4 2 21 15 2 9 5 5 4 . 7 25 2 11 8 7 5 3 8 2 12 18 6 15 15 14 7 51 2 Device 166 | . . . . . 4 1 . 1 14 11 1 7 2 5 1 . 5 9 1 7 8 6 3 2 5 1 5 5 4 9 11 10 2 25 1 Storage 39 | 1 2 1 1 . 2 . . . 1 . . . . . 1 . . 6 . 2 . . 1 . 2 . 3 2 . 4 1 3 2 4 . Processor 24 | . . . . . . 1 . . 2 . . . . . . . 1 6 . 2 . 1 . . . 1 . 1 . . . . 2 7 . Hackware 6 | . . . . . . . . . . . . . 3 . . . . 1 . . . . . . . . . . 1 . . 1 . . . Protection 70 | . . . . . 7 . 4 1 4 4 1 2 . . 2 . 1 3 1 . . . 1 1 1 . 4 10 1 2 3 . 1 15 1 Artifact . | . . . . . . . . . . . . . . . . . . . . . . . . . . . . . . . . . . . . Weapon 325 | 2 . 3 . 9 20 14 7 20 4 7 4 12 14 16 2 . 17 16 3 7 8 4 . 6 17 3 8 8 5 9 25 6 1 39 9 Energy Gun 43 | 1 . . . . 9 6 1 . . 1 1 3 3 . . . 1 3 . 2 2 . . . . . . 1 1 . . 1 1 5 1 Energy Cannon 152 | . . . . 1 9 5 3 16 3 4 1 5 8 9 1 . 7 2 2 4 4 4 . 5 7 3 6 5 2 3 8 2 . 15 8 Ballistic Gun 58 | 1 . 2 . 5 1 . . . . . . . . . 1 . 4 7 1 1 . . . . 5 . 2 . . 6 13 1 . 8 . Ballistic Cannon 21 | . . . . . . 1 . 1 . . . . . . . . 3 3 . . . . . . 4 . . 1 1 . . 1 . 6 . Launcher 25 | . . 1 . 3 1 1 2 . 1 2 . 3 . 1 . . 2 . . . . . . 1 . . . 1 . . 4 . . 2 . Special Weapon 6 | . . . . . . . . . . . . . . . . . . . . . 2 . . . 1 . . . 1 . . . . 2 . Impact Weapon . | . . . . . . . . . . . . . . . . . . . . . . . . . . . . . . . . . . . . Slashing Weapon . | . . . . . . . . . . . . . . . . . . . . . . . . . . . . . . . . . . . . Piercing Weapon 9 | . . . . . . . 1 3 . . 1 1 2 . . . . . . . . . . . . . . . . . . . . 1 . Special Melee Weapon 11 | . . . . . . 1 . . . . 1 . 1 6 . . . 1 . . . . . . . . . . . . . 1 . . . Unidentified Prototypes 39 | . . . . . 3 . . 5 . . . . . . 1 . . 1 . 1 . . 3 . 1 . . 1 5 2 3 . . 13 . Parts Lost 142 | . . . . 7 3 2 . 1 1 3 . 1 2 1 . . 19 16 . 1 1 . . 2 3 2 9 6 . . 28 . . 6 28 Power 13 | . . . . 2 . . . . . . . 1 . . . . 2 2 . . . . . . . . 1 . . . 1 . . 1 3 Propulsion 45 | . . . . 2 2 2 . . . 2 . . . . . . 3 5 . . 1 . . 1 2 1 2 2 . . 13 . . . 7 Utility 40 | . . . . . . . . . . . . . . . . . 8 5 . 1 . . . 1 . . 2 3 . . 8 . . 3 9 Weapon 44 | . . . . 3 1 . . 1 1 1 . . 2 1 . . 6 4 . . . . . . 1 1 4 1 . . 6 . . 2 9 Highest Loss Streak 18 | . . . . 3 2 2 . 1 1 2 . 1 2 1 . . 11 5 . 1 1 . . 2 2 2 7 2 . . 13 . . 2 18 Average Slot Usage (%) 87 | . 99 100 91 84 87 87 92 91 92 91 86 91 89 92 86 86 84 86 89 87 83 93 93 92 87 85 92 92 90 84 75 63 76 80 69 Engine 3 | . 14 14 14 13 1 . . . . . . 5 6 6 4 . . . 5 5 5 5 5 5 2 . . . . . . . . . . Core 3 | . . . . . 7 7 7 6 7 7 7 1 . . . . . 4 5 5 5 5 5 5 7 10 8 . . . 1 . . . . Reactor 3 | . . . . . . . . . . . . . 4 6 8 13 12 3 . . . . . . . . 1 9 10 9 6 6 7 6 5 Treads 5 | . 28 28 28 19 8 6 . . . . . . . . 11 13 12 3 . . . . . . . . . . 7 1 4 7 7 6 . Wheel 10 | . . . . 5 17 15 23 22 23 19 15 22 20 20 1 . . 7 17 17 16 17 17 16 14 15 14 14 4 14 9 . . . . Device 11 | . . . . . 9 14 15 15 14 13 10 14 12 12 13 13 12 15 3 10 14 22 19 15 8 7 14 9 9 16 16 22 20 10 11 Storage 17 | . 27 28 19 14 9 7 7 7 13 15 15 15 13 13 13 13 13 15 23 23 23 23 26 29 26 22 21 26 31 23 20 7 12 18 10 Processor 7 | . . . . . . 4 7 7 16 15 15 15 6 6 6 6 6 17 13 5 5 5 5 4 . 5 5 5 5 4 2 . 4 9 15 Protection 4 | . . . . . 14 15 15 15 . 1 3 . 6 6 6 6 5 1 5 5 3 . . . 5 5 4 3 . . 1 . . 5 3 Energy Gun 2 | . 14 4 . . 6 10 . . . . 1 9 6 . . . . 1 . 4 1 2 . . . . . . . . . 1 6 2 . Energy Cannon 7 | . . . . 1 4 4 7 14 14 14 1 2 3 11 13 13 9 . 2 5 3 7 11 10 8 10 18 14 14 . . 3 3 7 2 Ballistic Gun 4 | . 14 23 28 22 6 . . . . . . . . . . . 2 2 2 . . . . . 6 . 1 . . 13 8 1 3 4 1 Ballistic Cannon 1 | . . . . . . . . . . . . . . . . . 1 4 5 . . . . . 3 6 . 4 5 . . 3 3 3 . Naked Turns 4 | . . . . . . . . . . . . . . . . . . . . . . . . . . . . . . . . 4 . . . Heaviest Build 263 | 11 19 52 92 92 103 107 117 121 142 143 139 139 161 171 184 184 186 104 131 140 141 112 118 156 199 184 200 218 204 205 216 146 220 263 118 Greatest Support 160 | 40 40 40 40 40 20 36 36 36 36 42 26 36 36 36 108 108 108 80 42 42 42 36 36 36 42 42 42 42 103 103 112 145 145 160 126 Greatest Overweight (x) 18 | . . 1 2 8 5 10 3 5 3 5 5 5 4 4 4 1 2 9 3 3 3 3 3 4 9 6 5 7 4 11 18 5 1 3 . Average Overweight (x) 2 | . . . 1 4 4 4 2 3 2 3 4 3 3 4 1 1 1 4 2 2 2 2 3 3 4 3 3 4 1 2 3 . 1 . . Largest Inventory Capacity 52 | 6 10 16 24 24 44 24 24 24 32 32 32 32 32 32 52 32 32 26 24 26 26 26 30 30 30 30 30 42 42 42 40 16 30 38 10 Average Capacity 28 | 5 9 12 20 24 24 24 24 24 30 32 32 32 32 32 32 32 31 17 24 25 26 26 28 30 30 27 29 36 42 37 37 11 25 37 10 Most Carried 42 | 6 10 10 23 24 24 24 24 24 32 32 32 32 32 32 32 32 32 25 24 26 26 26 28 30 30 30 30 42 42 42 40 15 30 38 10 Average Carried 27 | 4 8 9 13 23 23 23 23 23 28 30 27 30 30 31 31 32 30 16 23 25 25 25 26 28 29 26 28 35 41 36 34 10 22 36 7 Final Capacity 42 | 6 10 16 24 24 24 24 24 24 32 32 32 32 32 32 32 32 12 24 24 26 26 26 30 30 30 26 30 42 42 40 10 16 30 10 10 Final Carried 42 | 6 10 10 23 21 24 24 24 23 32 32 28 31 32 32 32 32 12 24 24 26 26 26 28 29 30 24 30 42 42 39 10 15 27 10 2 Class Distribution -------------------- 30% | Scavenger-Mutant 29% | Hauler-Mutant 10% | Hauler-Skirmisher 7% | Scavenger-Skirmisher 7% | Mutant 6% | Scavenger-Executioner Dominant Class ---------------- Mutant | -10/Materials Mutant | -10/Mines Hauler-Mutant | -10/Exiles Hauler-Mutant | -9/Mines Hauler-Mutant | -8/Materials Hauler-Mutant | -7/Factory Hauler-Mutant | -7/Waste Hauler-Mutant | -7/Factory Hauler-Skirmisher | -7/Lower Caves Hauler-Skirmisher | -7/Lower Caves Hauler-Mutant | -7/Data Miner Hauler-Skirmisher | -6/Proximity Caves Hauler-Skirmisher | -6/Factory Commander-Mutant | -6/Extension Commander-Mutant | -6/Cetus Hauler-Mutant | -6/Archives Hauler-Mutant | -6/Hub_04(d) Scavenger-Skirmisher | -5/Factory Scavenger-Mutant | -5/Waste Scavenger-Mutant | -5/Factory Scavenger-Mutant | -5/Upper Caves Scavenger-Skirmisher | -5/Upper Caves Scavenger-Skirmisher | -5/Zhirov Scavenger-Skirmisher | -4/Proximity Caves Scavenger-Mutant | -4/Factory Scavenger-Mutant | -4/Waste Hauler-Mutant | -4/Factory Hauler-Mutant | -4/Armory Hauler-Mutant | -4/Lab Scavenger-Executioner | -3/Research Scavenger-Executioner | -3/Quarantine Scavenger-Assassin | -2/Research Scavenger-Mutant | -1/Access Scavenger-Mutant | -1/Command Scavenger-Mutant | -1/Access_0 Resources | -11 -10 -10 -10 -9 -8 -7 -7 -7 -7 -7 -7 -6 -6 -6 -6 -6 -6 -5 -5 -5 -5 -5 -5 -4 -4 -4 -4 -4 -4 -3 -3 -2 -1 -1 -1 ----------- Run | Scr Mat Min Exi Min Mat Fac Was Fac Low Low Dat Pro Fac Ext Cet Arc Hub Fac Was Fac Upp Upp Zhi Pro Fac Was Fac Arm Lab Res Qua Res Acc Com Ac0 Matter Collected 25729 | 245 . 134 50 287 455 224 456 710 328 428 93 300 167 315 100 . 899 1864 458 469 437 110 . 169 756 492 269 1303 342 2310 6003 864 192 4410 90 Remotely 5795 | . . . . . . . . . . . . . . . . . . 166 . . . . . . . . . . . 1310 1249 733 192 2145 . Salvage Created 31500 | 68 . 114 . 227 1100 690 930 466 372 208 228 245 430 472 63 130 1696 2712 1627 846 231 302 . 517 991 211 1910 1434 . 1617 8624 699 375 1875 90 Parts 1023 | . . 13 . 8 61 29 4 21 16 23 3 14 9 15 2 3 64 109 19 23 5 14 . 22 54 5 67 40 . 56 216 20 9 70 9 Haulers Intercepted 14 | . . . . . 3 . . 3 . . . . 2 . . . . 2 . 2 . . . . . . . . . 1 . . 1 . . Recyclers Shooed 20 | . . . . . . . . . . . . . . . . . . 7 . 6 . . . . 1 . 3 . . . . 1 2 . . Parts Field Recycled . | . . . . . . . . . . . . . . . . . . . . . . . . . . . . . . . . . . . . Retrieved Matter . | . . . . . . . . . . . . . . . . . . . . . . . . . . . . . . . . . . . . Parts Self-Destructed 87 | . . . . . . . . . 19 12 . 11 . . . . . . . . 11 27 . 7 . . . . . . . . . . . Prevented 19 | . . . . . . . . . 1 2 . 1 . . . . . . . . . 3 . 12 . . . . . . . . . . . Kills | -11 -10 -10 -10 -9 -8 -7 -7 -7 -7 -7 -7 -6 -6 -6 -6 -6 -6 -5 -5 -5 -5 -5 -5 -4 -4 -4 -4 -4 -4 -3 -3 -2 -1 -1 -1 ------- Run | Scr Mat Min Exi Min Mat Fac Was Fac Low Low Dat Pro Fac Ext Cet Arc Hub Fac Was Fac Upp Upp Zhi Pro Fac Was Fac Arm Lab Res Qua Res Acc Com Ac0 Combat Hostiles Destroyed 400 | . . 6 . 18 13 10 6 4 8 11 4 8 3 7 . 2 33 29 6 2 4 6 . 8 8 1 19 24 . 14 109 7 4 25 1 Melee 1 | . . . . . . . . . . . . . . . . . . 1 . . . . . . . . . . . . . . . . . Guns 166 | . . 3 . 3 1 2 . . . . . . 1 . . . 6 15 3 2 2 . . . 2 . 1 . . 14 99 1 3 8 . Cannons 120 | . . . . . 7 2 . 3 6 1 . . 1 5 . 2 16 13 3 . 2 5 . 2 5 1 9 18 . . 3 5 . 11 . AOE 78 | . . 3 . 15 4 3 6 1 2 10 . 7 . 1 . . 6 . . . . . . 4 . . 1 4 . . 7 . . 4 . Classes Destroyed 27 | 1 . 2 . 1 7 3 1 . 4 . . 1 . . . . 1 . . . . . . 1 . . . . . 1 4 . . . . Worker 18 | . . . . . 2 . . . . . . . . . . . 3 5 . 1 . . . . 5 . 1 . . 1 . . . . . Builder 14 | . . . . . 1 1 . . . . . . . 1 . . . 4 . 1 . . . . 2 . 4 . . . . . . . . Tunneler 3 | . . . . . . 2 . . . . . . . . . . . . . 1 . . . . . . . . . . . . . . . Hauler 14 | . . . . . 3 . . 3 . . . . 2 . . . . 2 . 2 . . . . . . . . . 1 . . 1 . . Recycler 35 | 1 . . . 1 3 2 . 1 . . . . . . . . 2 8 . 3 . . . . 3 . 2 . . 5 1 1 1 1 . Carrier 1 | . . . . . . . . . . . . . . . . . . . . . . . . . . . . . . . 1 . . . . Minesweeper 2 | . . . . . . . . . 1 1 . . . . . . . . . . . . . . . . . . . . . . . . . Mechanic 8 | . . . . . . . . . . . . . . . . . 1 . . . . . . . . . . 1 . . 6 . . . . Operator 6 | . . . . . 1 . . 1 . . . . . . . . . . . 1 . . . . . . . 1 . . . 2 . . . Drone 2 | . . . . . . . . . . . . . . . . . . . . . . . . 2 . . . . . . . . . . . Watcher 20 | . . . . . 4 1 . 1 . . . . . . . . 3 4 . 1 . . . . . . 3 1 . 2 . . . . . Swarmer 57 | . . 4 . 3 3 . . . 3 10 . 5 . 1 . . . 4 . . . 2 . 4 . . . . . 10 2 . 1 5 . Saboteur 7 | . . . . . . . . . . . . . . . . . 1 1 . . . . . . . . . . . . 5 . . . . Grunt 132 | . . 2 . 2 2 7 . 3 2 . . 2 3 5 . . 11 11 . . 1 4 . . . . 5 7 . 1 59 2 . 3 . Brawler 17 | . . . . . . 1 . . . . . . . . . . 1 . . . . . . . . . . . . . 12 1 . 2 . Duelist 22 | . . . . . . . . . . . . 1 . . . . 2 . . . . . . . . . . 3 . . 16 . . . . Protector 9 | . . . . . . . . . . . . . . . . . . . . . . . . . . . . . . . 6 1 . 2 . Sentry 36 | . . . . . 7 1 . . . 1 . . . 1 . 2 1 2 . 1 1 . . . 2 . 5 2 . . 8 1 . 1 . Hunter 21 | . . . . . 1 . . . . . . . . . . . 4 2 . . 1 . . 4 . . 4 2 . 2 . . 1 . . Programmer 27 | . . . . . . 1 . 1 1 . . . . . . . 2 3 . . . . . . 2 . 2 5 . . . 2 2 6 . Behemoth 2 | . . . . . . . . . . . . . . . . . . . . . . . . . . . . . . 1 . . . 1 . Compactor 13 | . . . . . . . 6 . . . . . . . . . . . 6 . . . . . . 1 . . . . . . . . . M Guard 2 | . . . . . . . . . . . . . . . . . . . . . . . . . . . . . . . . . . 2 . Enhanced Grunt 4 | . . . . . . . . . . . 4 . . . . . . . . . . . . . . . . . . . . . . . . Lightning 7 | . . . . . . . . . . . . . . . . . 7 . . . . . . . . . . . . . . . . . . Tracker 12 | . . . . . . . . . . . . . . . . . 3 3 . 1 . . . . 2 . 1 2 . . . . . . . Combat Programmer 10 | . . . . . . . . . . . . . . . . . 1 3 . . . . . . 2 . 1 3 . . . . . . . Investigator 1 | . . . . . . . . . . . . . . . . . . . . . . . . . . . . . . . 1 . . . . Alpha 7 2 | . . . . . . . . . . . . . . . . . . . . . . . . . . . . . . . 1 . . 1 . Thief 1 | . . . . . . . . . 1 . . . . . . . . . . . . . . . . . . . . . . . . . . Assembled 14 | . . . . 13 . . . . . . . . . . . . . . . . . . . . . . 1 . . . . . . . . Surgeon 1 | . . . . . . . . . 1 . . . . . . . . . . . . . . . . . . . . . . . . . . Wasp 2 | . . . . . . . . . 1 . . . . . . . . . . . 1 . . . . . . . . . . . . . . Thug 2 | . . . . . . . . . . . . 1 . . . . . . . . . . . . . . 1 . . . . . . . . Butcher 2 | . . . . . . . . . . . . . . 1 1 . . . . . . . . . . . . . . . . . . . . Guerrilla 1 | . . . . . . . . . . . . . . . . . 1 . . . . . . . . . . . . . . . . . . Mutant 1 | . . . . . . . . . 1 . . . . . . . . . . . . . . . . . . . . . . . . . . Best Kill Streak 38 | 1 . 3 . 11 7 3 2 3 3 6 4 3 3 2 . 2 6 11 1 5 2 2 . 4 3 1 6 6 . 13 38 5 2 5 1 Combat Bots Only 37 | . . 3 . 11 3 3 2 2 3 6 4 3 3 2 . 2 5 9 1 2 2 2 . 4 3 1 6 6 . 5 37 5 2 5 1 Max Kills in Single Turn 5 | 1 . 2 . 4 2 3 2 1 2 4 2 3 1 1 1 1 2 2 1 1 1 1 . 4 1 1 1 2 . 2 5 1 1 3 1 Gunslinging 3 | . . . . . . . . . . . . . . . . . . . . . . . . . . . . . . . 3 . . 1 . Exploded 4 | . . 2 . 4 1 3 2 1 2 4 . 2 . 1 . . 2 . . . . . . 4 . . 1 2 . . 2 . . 3 . Melee 1 | . . . . . . . . . . . . . . . . . . 1 . . . . . . . . . . . . . . . . . Uniques/NPCs Destroyed 2 | . . . . . . . . . . . . . . . . . . . . . . . . . . . . . . . . . . 1 1 MAIN.C Shell (-1/Command) MAIN.C (-1/Command) A6 (-1/Access_0) Combat | -11 -10 -10 -10 -9 -8 -7 -7 -7 -7 -7 -7 -6 -6 -6 -6 -6 -6 -5 -5 -5 -5 -5 -5 -4 -4 -4 -4 -4 -4 -3 -3 -2 -1 -1 -1 -------- Run | Scr Mat Min Exi Min Mat Fac Was Fac Low Low Dat Pro Fac Ext Cet Arc Hub Fac Was Fac Upp Upp Zhi Pro Fac Was Fac Arm Lab Res Qua Res Acc Com Ac0 Damage Taken 33178 | . . 162 . 1253 485 358 50 68 315 504 . 189 206 353 52 35 4566 3279 . 56 413 138 . 460 755 347 1127 1384 21 96 5621 168 101 4851 5765 Core 4393 | . . 19 . 187 44 31 . . . 55 . . 38 48 . . 452 485 . . . 20 . 83 22 . 26 204 . . 1061 10 22 140 1446 Absorbed by Shields 7930 | . . . . . . . . . . . . . . 350 55 36 990 765 . . . . . . 128 . 254 . . . 666 175 106 2488 1917 Reduced by Siege Mode 495 | . . . . . . . . . . . . . . . . . 179 189 . . . . . . . . . 14 . . . . . 113 . Core Remaining (%) 62 | 100 . . . 17 92 . . . . . . 87 . . . . 36 . . . . . . 41 . . . . 78 . 10 99 . . . Volleys Fired 1522 | 3 2 8 . 28 73 44 29 18 38 19 . 16 20 40 18 4 132 158 41 34 20 22 . 23 66 26 80 100 5 45 222 14 13 137 24 Largest 5 | 2 2 2 . 2 2 2 2 2 2 2 . 2 2 2 2 2 2 2 2 2 2 2 . 2 3 2 4 4 1 3 3 4 5 5 1 Hottest 387 | 70 70 70 . 83 123 122 121 140 140 145 . 145 119 119 105 70 114 146 147 171 165 165 . 162 233 156 364 387 120 120 152 229 294 383 120 Shots Fired 2976 | 6 4 14 . 45 107 82 57 35 56 31 . 25 33 71 33 8 231 248 75 49 33 34 . 35 116 45 150 173 5 131 629 28 36 327 24 Gun 1365 | 6 4 12 . 29 44 58 8 . . 3 . 12 21 5 . . 52 118 33 23 13 7 . . 27 . 5 . . 129 610 11 19 113 3 Cannon 1515 | . . . . 3 60 23 8 35 54 22 . 7 12 65 33 8 175 130 42 26 18 27 . 34 88 45 145 168 5 2 18 17 17 209 19 Launcher 88 | . . 2 . 13 3 1 41 . 2 6 . 6 . 1 . . 4 . . . . . . 1 . . . 5 . . 1 . . 2 . Special 8 | . . . . . . . . . . . . . . . . . . . . . 2 . . . 1 . . . . . . . . 3 2 Kinetic 1453 | 3 2 9 . 29 4 4 . . . . . . . . . . 82 199 68 7 . . . . 45 35 5 32 . 129 610 14 17 158 1 Thermal 958 | 3 2 3 . 3 64 58 16 2 40 22 . 7 6 61 33 8 136 49 7 33 31 24 . 10 39 10 70 86 4 2 16 5 8 84 16 Explosive 88 | . . 2 . 13 3 1 41 . 2 6 . 6 . 1 . . 4 . . . . . . 1 . . . 5 . . 1 . . 2 . Electromagnetic 469 | . . . . . 36 19 . 33 14 3 . 12 27 9 . . 9 . . 9 . 10 . 24 31 . 75 50 1 . 2 9 11 80 5 Robot Hit Streak 77 | 3 4 8 . 9 11 20 9 5 11 4 . 6 13 15 10 7 24 33 18 21 6 5 . 8 16 6 13 38 . 51 65 13 16 77 8 Robot Miss Streak 9 | 1 1 1 . 3 3 3 1 4 3 2 . 1 1 2 2 . 5 5 2 2 1 1 . 4 9 3 3 3 . 3 2 3 1 1 1 Penetration Max 1 | . . . . . . . . . . . . . . . . . 1 1 1 . . . . . . . . . . . . . . 1 1 Secondary Targets 62 | . . 1 . . . . . . . . . . . . . . 2 3 . . . . . . . . . . . 1 54 . . 1 . Max Gunslinging Chain 2 | . . 1 . . . . . . . . . . . . . . 1 1 . . . . . . . . . . . 1 2 . . 1 . Shots Hit Robots 2198 | 4 3 10 . 25 77 60 38 19 26 17 2 16 22 79 21 7 166 195 45 38 23 19 . 17 66 25 92 95 . 107 588 18 26 247 5 Core Hits 1220 | 2 . 9 . 30 30 19 14 12 17 21 14 18 8 21 9 5 62 132 12 19 4 7 . 12 31 1 37 50 . 55 430 16 8 113 2 Critical Hits 104 | . . . . . 1 . . . . . 1 . . 1 . . 19 15 20 . . 1 . . 4 14 8 . . 1 12 . . 7 . Critical Kills 28 | . . . . . . . . . . . . . . 1 . . 6 7 5 . . 1 . . 1 1 2 . . 1 3 . . . . Critical Parts Destroyed 43 | . . . . . 1 . . . . . 1 . . . . . 11 7 4 . . . . . 3 1 4 . . . 7 . . 4 . Melee Attacks 127 | . . . . . . 1 4 17 . . 2 9 9 36 . . . 1 . . . . . . . . . . . . . . . 48 . Impact . | . . . . . . . . . . . . . . . . . . . . . . . . . . . . . . . . . . . . Slashing . | . . . . . . . . . . . . . . . . . . . . . . . . . . . . . . . . . . . . Piercing 87 | . . . . . . . 4 17 . . 1 9 8 . . . . . . . . . . . . . . . . . . . . 48 . Sneak Attacks 41 | . . . . . . 1 . . . . 2 . 1 36 . . . 1 . . . . . . . . . . . . . . . . . Combat Hostiles . | . . . . . . . . . . . . . . . . . . . . . . . . . . . . . . . . . . . . Follow-up Attacks . | . . . . . . . . . . . . . . . . . . . . . . . . . . . . . . . . . . . . Damage Inflicted 93814 | 58 40 338 . 1163 2085 1768 6136 1074 994 1353 729 1025 521 1838 1016 284 6428 6235 1584 1412 636 653 . 1262 2657 761 4286 5775 . 3533 26407 828 1344 9420 171 Guns 37147 | 58 40 150 . 285 496 844 159 . . 31 . 111 325 39 . . 1055 3131 801 613 163 108 . . 635 . 117 . . 3533 21622 69 381 2347 34 Cannons 36870 | . . . . 17 1011 338 155 560 721 521 . 206 196 1710 1016 284 4221 3059 783 750 473 545 . 815 2022 761 3845 4142 . . 1107 759 806 5910 137 Explosions 19227 | . . 175 . 850 560 586 5822 514 273 801 654 708 . 89 . . 920 . . . . . . 447 . . 324 1633 . . 3633 . 112 1126 . Melee 75 | . . . . . . . . . . . 75 . . . . . . . . . . . . . . . . . . . . . . . . Ramming 495 | . . 13 . 11 18 . . . . . . . . . . . 232 45 . 49 . . . . . . . . . . 45 . 45 37 . Kinetic 43143 | 21 15 114 . 285 34 . . . . . . . . . . . 1588 4892 1548 281 . . . . 756 655 117 991 . 3533 21622 434 692 5531 34 Thermal 26410 | 37 25 36 . 17 891 1430 314 549 484 521 . 206 . 1614 1016 284 3806 1298 36 858 636 360 . . 1160 106 1889 2234 . . 4229 41 355 1978 . Explosive 13041 | . . 175 . 850 407 . 5822 . 273 801 . 708 . 89 . . 660 . . . . . . 447 . . . 1416 . . 511 . . 882 . Electromagnetic 10650 | . . . . . 735 338 . 525 237 31 654 111 521 135 . . 142 . . 224 . 293 . 815 741 . 2280 1134 . . . 353 252 992 137 Impact . | . . . . . . . . . . . . . . . . . . . . . . . . . . . . . . . . . . . . Slashing . | . . . . . . . . . . . . . . . . . . . . . . . . . . . . . . . . . . . . Piercing 75 | . . . . . . . . . . . 75 . . . . . . . . . . . . . . . . . . . . . . . . Highest Corruption 24 | . . . . . . . . 2 5 5 5 5 . . . . 24 10 20 20 16 . . . 2 3 5 6 6 4 5 . 1 16 23 Average Corruption 6 | . . . . . . . . 2 4 5 5 5 . . . . 6 3 19 18 8 . . . 1 2 4 5 6 3 2 . 1 9 9 Corruption Purged 44 | . . . . . . . . . . . . . . . . . 6 . . 4 16 . . . . . . . . 2 . . . 16 . Effects 735 | . . . . . . . . 4 32 38 6 38 . . . . 37 38 50 62 71 . . . 2 7 37 44 13 3 19 . . 227 7 Message Errors 159 | . . . . . . . . 1 6 10 2 12 . . . . 9 11 9 8 23 . . . 1 . 8 6 6 2 1 . . 43 1 Matter Fused 138 | . . . . . . . . . 8 10 3 8 . . . . 6 3 7 8 24 . . . . 3 8 13 2 1 . . . 33 1 Heat Flow Errors 63 | . . . . . . . . 1 4 7 . 4 . . . . 3 3 . 4 4 . . . . 2 3 3 . . 2 . . 23 . Energy Discharges 64 | . . . . . . . . 1 3 5 . 5 . . . . 2 3 2 4 7 . . . . 1 3 4 1 . 1 . . 22 . Parts Rejected 6 | . . . . . . . . . . 1 . 1 . . . . . . . . . . . . . . . . 1 . . . . 1 2 Data Loss (minor) 79 | . . . . . . . . 1 2 1 1 1 . . . . 3 5 4 11 9 . . . . . 7 . 1 . 1 . . 30 2 Data Loss (major) 16 | . . . . . . . . . 2 1 . 1 . . . . 1 1 1 1 4 . . . . . . . 1 . . . . 3 . Misfires 23 | . . . . . . . . . 1 2 . 2 . . . . 4 . 1 . . . . . . . 2 3 . . . . . 8 . Alerts 4 | . . . . . . . . . . . . . . . . . . 1 . 2 . . . . . . . . . . . . . 1 . Misdirections 42 | . . . . . . . . . . . . . . . . . 1 2 6 10 . . . . . . . . . . . . . 22 1 Targeting Errors 118 | . . . . . . . . . 6 . . 2 . . . . 7 8 16 11 . . . . 1 1 5 13 1 . 12 . . 35 . Weapon Failures 23 | . . . . . . . . . . 1 . 2 . . . . 1 1 4 3 . . . . . . 1 2 . . 2 . . 6 . Overload Shots 1 | . . . . . . . . . . . . . . . 1 . . . . . . . . . . . . . . . . . . . . Overflow Damage 1934 | . . 11 . 38 28 61 29 110 58 33 15 92 . 24 . 7 206 78 . 62 7 29 . 48 170 . 96 352 . . 240 . 92 48 . Projectiles 1030 | . . . . . 11 . . 3 32 . . 56 . 24 . 7 120 78 . 62 7 29 . 48 170 . 96 43 . . 157 . 51 36 . Explosions 852 | . . 11 . 38 17 61 29 107 26 33 15 36 . . . . 49 . . . . . . . . . . 309 . . 83 . 26 12 . Melee 52 | . . . . . . . . . . . . . . . . . 37 . . . . . . . . . . . . . . . 15 . . Knockbacks 64 | . . . . . . . . . . . . . . . . . 7 24 . . . . . . 2 . . 10 . . . 1 9 11 . Impact 2 | . . . . . . . . . . . . . . . . . 2 . . . . . . . . . . . . . . . . . . Kinetic 61 | . . . . . . . . . . . . . . . . . 5 24 . . . . . . 2 . . 9 . . . 1 9 11 . Secondary 1 | . . . . . . . . . . . . . . . . . . . . . . . . . . . . 1 . . . . . . . Self-Inflicted Damage 937 | . . 52 . 275 25 . 50 32 49 . . 32 . . . . . 14 . 24 . . . . . . 80 . . . 224 . . 80 . Shots 21 | . . 2 . 8 1 . 2 1 1 . . 1 . . . . . . . . . . . . . . 1 . . . 3 . . 1 . Rammed 35 | . . 5 . 3 . . . . . . . . . . . . 12 3 1 1 . . . . . . . . . . 7 . 1 2 . Targets Rammed 36 | . . 5 . 3 1 . . . . . . . . . . . 12 3 1 1 . . . . . . . . . . 7 . 1 2 . Kicked . | . . . . . . . . . . . . . . . . . . . . . . . . . . . . . . . . . . . . Crushed 1 | . . . . . 1 . . . . . . . . . . . . . . . . . . . . . . . . . . . . . . Highest Temperature 423 | 27 18 36 . 37 422 117 75 63 179 173 . 240 . . 14 . 322 261 325 321 250 11 . 318 423 204 252 288 60 194 321 . . 162 52 Average Temperature 79 | 14 10 16 . 12 61 33 30 15 39 62 . 98 . . 10 . 78 91 139 87 81 8 . 103 89 109 81 92 28 89 124 . . 59 26 Received Heat Transfer 2677 | . . 27 . 96 126 102 . . 60 36 . 45 99 77 4 . 196 387 . 12 42 21 . . 18 . 142 108 12 . 737 8 . 133 189 Effects 10 | . . . . . . . . . . . . . . . . . 1 . . . . . . 3 4 . . 1 . . 1 . . . . Shutdowns 3 | . . . . . . . . . . . . . . . . . . . . . . . . . 3 . . . . . . . . . . Energy Bleed 2 | . . . . . . . . . . . . . . . . . . . . . . . . . 1 . . . . . 1 . . . . Interference 4 | . . . . . . . . . . . . . . . . . . . . . . . . 3 . . . 1 . . . . . . . Short Circuit 1 | . . . . . . . . . . . . . . . . . 1 . . . . . . . . . . . . . . . . . . Siege Activations 30 | . . . . . . . . . . . . . . . . . 14 11 . . . . . . . . . 1 . . . 1 . 3 . Total Turns 540 | . . . . . . . . . . . . . . . . . 162 194 . . . . . . . . . 52 . . . 6 . 126 . Longest Duration 98 | . . . . . . . . . . . . . . . . . 28 49 . . . . . . . . . 52 . . . 6 . 98 . Robots Corrupted 39 | . . . . . 1 1 . 1 1 . 4 1 3 1 . . 1 . . 2 . 1 . 2 1 . 11 2 . . . 1 2 2 1 Combat Hostiles 29 | . . . . . 1 1 . . . . 4 1 1 1 . . 1 . . . . 1 . 2 1 . 8 2 . . . 1 1 2 1 Parts Fried 89 | . . . . . 9 1 . 1 1 . 2 1 4 1 . . . . . 6 . . . 3 2 . 26 8 . . . 11 2 5 6 Impact Corruptions 4 | . . . . . . . . . . . . . . . . . 3 . . . . . . . . . . . . . . . 1 . . Robots Melted 6 | . . . . . . 2 . . . . . . . . . . 4 . . . . . . . . . . . . . . . . . . Combat Hostiles 6 | . . . . . . 2 . . . . . . . . . . 4 . . . . . . . . . . . . . . . . . . Parts Melted 32 | 1 . . . . 2 7 . . 1 1 . . . 1 . 1 9 . . 4 2 1 . . 1 . . . . . . . . 1 . Heat Transferred 30717 | 111 74 111 . 37 1741 1941 592 537 666 781 . 274 . 2175 1425 400 4950 1517 50 1218 909 535 . . 975 150 1790 1499 . . 4920 37 309 993 . Parts Sabotaged 7 | . . . . . . . . . . . . . . . . . . 3 . . . . . . . . . . . . 4 . . . . Parts Stolen . | . . . . . . . . . . . . . . . . . . . . . . . . . . . . . . . . . . . . Parts Stripped . | . . . . . . . . . . . . . . . . . . . . . . . . . . . . . . . . . . . . Power Chain Reactions 11 | . . . . . 3 1 . 2 . . . . . . . . 2 . . . . . . . . . 1 1 . . . . . 1 . Missiles Intercepted . | . . . . . . . . . . . . . . . . . . . . . . . . . . . . . . . . . . . . Alert | -11 -10 -10 -10 -9 -8 -7 -7 -7 -7 -7 -7 -6 -6 -6 -6 -6 -6 -5 -5 -5 -5 -5 -5 -4 -4 -4 -4 -4 -4 -3 -3 -2 -1 -1 -1 ------- Run | Scr Mat Min Exi Min Mat Fac Was Fac Low Low Dat Pro Fac Ext Cet Arc Hub Fac Was Fac Upp Upp Zhi Pro Fac Was Fac Arm Lab Res Qua Res Acc Com Ac0 Peak Influence 4271 | 5 53 100 . 70 473 354 226 1468 . . . . 113 855 721 418 1095 1014 367 614 . . . . 292 179 713 768 . 466 4271 2917 2112 1418 . Average Influence 565 | 1 31 36 . 18 299 219 89 918 . . . . 63 344 574 313 743 637 306 457 . . . . 109 118 523 420 . 290 2990 2652 1809 1266 . Maximum Alert Level 5 | . . . . . 2 1 1 4 . . . . . 3 3 2 3 3 1 2 . . . . 1 . 3 3 . 2 5 5 5 5 . Low Security (%) 25 | . . . . . . . . . . . . . . . . . . . . . . . . . . . . . . . . . . . . Level 1 15 | . . . . . . . . . . . . . . . . . . . . . . . . . . . . . . . . . . . . Level 2 17 | . . . . . . . . . . . . . . . . . . . . . . . . . . . . . . . . . . . . Level 3 11 | . . . . . . . . . . . . . . . . . . . . . . . . . . . . . . . . . . . . Level 4 13 | . . . . . . . . . . . . . . . . . . . . . . . . . . . . . . . . . . . . Level 5 14 | . . . . . . . . . . . . . . . . . . . . . . . . . . . . . . . . . . . . High Security . | . . . . . . . . . . . . . . . . . . . . . . . . . . . . . . . . . . . . Max Security 2 | . . . . . . . . . . . . . . . . . . . . . . . . . . . . . . . . . . . . Squads Dispatched 136 | . 2 . . . 5 3 . 14 . . . . 7 3 . . 20 10 . 3 . . . . 4 . 8 9 . 1 32 9 4 2 . Investigation 17 | . 2 . . . 1 1 . 4 . . . . 3 . . . 3 1 . . . . . . . . . . . 1 . . 1 . . Extermination 15 | . . . . . . 1 . 3 . . . . . . . . 2 1 . . . . . . . . 2 3 . . . 1 1 1 . Reinforcement 22 | . . . . . 2 1 . 4 . . . . 1 2 . . 7 . . . . . . . 1 . 2 . . . . 2 . . . Assault 47 | . . . . . 1 . . 3 . . . . . 1 . . 3 2 . . . . . . . . 1 1 . . 31 2 1 1 . Garrison 11 | . . . . . 1 . . . . . . . 3 . . . . . . . . . . . . . 1 . . . 1 4 1 . . Intercept 24 | . . . . . . . . . . . . . . . . . 5 6 . 3 . . . . 3 . 2 5 . . . . . . . Construction Impeded 8 | . . . . . . . . 1 . . . . . 1 . . 4 . . . . . . . 1 . . . . . . 1 . . . Haulers Reinforced 7 | . . . . . . 1 . 3 . . . . 1 . . . 1 . . . . . . . . . 1 . . . . . . . . Stealth | -11 -10 -10 -10 -9 -8 -7 -7 -7 -7 -7 -7 -6 -6 -6 -6 -6 -6 -5 -5 -5 -5 -5 -5 -4 -4 -4 -4 -4 -4 -3 -3 -2 -1 -1 -1 --------- Run | Scr Mat Min Exi Min Mat Fac Was Fac Low Low Dat Pro Fac Ext Cet Arc Hub Fac Was Fac Upp Upp Zhi Pro Fac Was Fac Arm Lab Res Qua Res Acc Com Ac0 Distress Signals 56 | . . . . 1 3 1 . 1 . . . . . 3 2 . 2 2 . 1 . . . . . . 3 3 . 2 2 3 1 26 . Communications Jammed . | . . . . . . . . . . . . . . . . . . . . . . . . . . . . . . . . . . . . Distress Signals . | . . . . . . . . . . . . . . . . . . . . . . . . . . . . . . . . . . . . Times Spotted 751 | . 2 9 . 20 25 14 6 20 9 12 . 10 5 31 14 4 58 44 5 7 11 14 . 8 19 5 33 43 3 12 212 26 10 36 24 Peak Tracking Total 30 | . 1 3 . 5 4 5 5 3 3 5 1 4 3 5 5 1 8 9 4 3 4 5 . 4 11 4 7 9 3 5 30 7 6 6 22 Tactical Retreats 28 | . . . . . 1 1 . 1 . 1 . . . . . . 7 1 . . 1 1 . . . 1 5 1 . . . 3 . 4 . Traps | -11 -10 -10 -10 -9 -8 -7 -7 -7 -7 -7 -7 -6 -6 -6 -6 -6 -6 -5 -5 -5 -5 -5 -5 -4 -4 -4 -4 -4 -4 -3 -3 -2 -1 -1 -1 ------- Run | Scr Mat Min Exi Min Mat Fac Was Fac Low Low Dat Pro Fac Ext Cet Arc Hub Fac Was Fac Upp Upp Zhi Pro Fac Was Fac Arm Lab Res Qua Res Acc Com Ac0 Traps Triggered 36 | . . . . . . 2 . 2 1 . 3 . . 2 . . 1 3 . . . . . . 2 . 1 2 . . 1 1 . 15 . Indirectly 3 | . . . . . . . . . . . 3 . . . . . . . . . . . . . . . . . . . . . . . . Trap Hack Attempts . | . . . . . . . . . . . . . . . . . . . . . . . . . . . . . . . . . . . . Triggered . | . . . . . . . . . . . . . . . . . . . . . . . . . . . . . . . . . . . . Disarmed . | . . . . . . . . . . . . . . . . . . . . . . . . . . . . . . . . . . . . Reprogrammed 5 | . . . . . . . . . . . . . . . . . . . . 5 . . . . . . . . . . . . . . . Reused 1 | . . . . . . . . . . . 1 . . . . . . . . . . . . . . . . . . . . . . . . Traps Extracted . | . . . . . . . . . . . . . . . . . . . . . . . . . . . . . . . . . . . . Installed 6 | . . . . . . . . . . . 6 . . . . . . . . . . . . . . . . . . . . . . . . Triggered 8 | . . . . . . . . . 1 . . 6 . . . . . . . . . . . . . . . . . . . . . 1 . Machines | -11 -10 -10 -10 -9 -8 -7 -7 -7 -7 -7 -7 -6 -6 -6 -6 -6 -6 -5 -5 -5 -5 -5 -5 -4 -4 -4 -4 -4 -4 -3 -3 -2 -1 -1 -1 ---------- Run | Scr Mat Min Exi Min Mat Fac Was Fac Low Low Dat Pro Fac Ext Cet Arc Hub Fac Was Fac Upp Upp Zhi Pro Fac Was Fac Arm Lab Res Qua Res Acc Com Ac0 Machines Disabled 82 | . . . . 1 2 8 . 8 . . . . . 4 4 2 4 5 . 1 . . . . 5 . 2 7 5 . 7 1 5 7 4 Max in Single Turn 8 | . . . . 1 1 8 . 4 . . . . . . 1 . 1 1 . 1 . . . . 3 . 1 1 1 . 2 . 1 2 1 Garrison Access 7 | . . . . . 1 . . 1 . . . . . . . . 1 1 . . . . . . 1 . 1 . . . 1 . . . . Phase Generator 1 | . . . . . . . . . . . . . . . . . . . . . . . . . . . . . . . . . . 1 . Network Hub 4 | . . . . . . . . . . . . . . . . . 4 . . . . . . . . . . . . . . . . . . Energy Cycler 2 | . . . . . . . . . . . . . . . . . . . . . . . . . . . . . . . . . 2 . . Machines Sabotaged 2 | . . . . . . . . . . . . . . . . . 2 . . . . . . . . . . . . . . . . . . Garrisons Compromised 1 | . . . . . . . . . . . . . . . . . . . . . . . . . . . 1 . . . . . . . . Overloaded Fab Kills . | . . . . . . . . . . . . . . . . . . . . . . . . . . . . . . . . . . . . Fab Network Shutdowns 1 | . . . . . . . . . . . . . . . . . . . . 1 . . . . . . . . . . . . . . . Hacking | -11 -10 -10 -10 -9 -8 -7 -7 -7 -7 -7 -7 -6 -6 -6 -6 -6 -6 -5 -5 -5 -5 -5 -5 -4 -4 -4 -4 -4 -4 -3 -3 -2 -1 -1 -1 --------- Run | Scr Mat Min Exi Min Mat Fac Was Fac Low Low Dat Pro Fac Ext Cet Arc Hub Fac Was Fac Upp Upp Zhi Pro Fac Was Fac Arm Lab Res Qua Res Acc Com Ac0 Machines Accessed 111 | . 2 . 5 . 4 2 . 14 . 1 4 . 3 11 4 . 10 9 . 4 2 . 9 . 2 . 2 8 2 5 . 3 3 2 . Terminals 61 | . 1 . . . 2 2 . 9 . . . . 1 11 4 . 10 3 . 2 1 . . . . . 2 2 . 3 . 3 3 2 . Fabricators 11 | . . . . . . . . 1 . . . . . . . . . 2 . 1 . . . . 1 . . 5 . 1 . . . . . Repair Stations 4 | . . . . . . . . 1 . . . . . . . . . 2 . 1 . . . . . . . . . . . . . . . Recycling Units 3 | . 1 . . . 1 . . . . . . . . . . . . . . . . . . . . . . 1 . . . . . . . Scanalyzers 4 | . . . . . . . . 2 . . . . 1 . . . . . . . . . . . . . . . . 1 . . . . . Garrison Access 6 | . . . . . 1 . . 1 . . . . 1 . . . . 2 . . . . . . 1 . . . . . . . . . . Total Hacks 475 | . 4 . 49 . 10 3 . 28 . 1 25 . 13 28 10 . 25 42 . 24 8 . 44 . 5 . 16 59 20 24 . 12 17 8 . Successful 279 | . 3 . 49 . 6 1 . 9 . 1 25 . 2 15 4 . 11 14 . 14 5 . 44 . 3 . 7 24 20 7 . 3 8 4 . Failed 195 | . . . . . 4 2 . 19 . . . . 11 13 6 . 14 28 . 10 3 . . . 2 . 9 35 . 17 . 9 9 4 . Catastrophic 42 | . . . . . 1 . . 9 . . . . 1 1 2 . 1 4 . 3 . . . . 1 . 4 5 . 3 . 1 4 2 . Database Lockouts 1 | . 1 . . . . . . . . . . . . . . . . . . . . . . . . . . . . . . . . . . Manual 191 | . 4 . 1 . 6 2 . 7 . . . . 7 19 10 . 18 16 . 9 4 . . . 1 . 8 41 . 8 . 7 17 6 . Terminals 212 | . 3 . . . 6 3 . 18 . . . . 5 28 10 . 25 8 . 13 7 . . . . . 16 23 . 10 . 12 17 8 . Fabricators 60 | . . . . . . . . 1 . . . . . . . . . 9 . 9 . . . . 2 . . 33 . 6 . . . . . Repair Stations 18 | . . . . . . . . 4 . . . . . . . . . 12 . 2 . . . . . . . . . . . . . . . Recycling Units 5 | . 1 . . . 1 . . . . . . . . . . . . . . . . . . . . . . 3 . . . . . . . Scanalyzers 17 | . . . . . . . . 4 . . . . 5 . . . . . . . . . . . . . . . . 8 . . . . . Garrison Access 23 | . . . . . 3 . . 1 . . . . 3 . . . . 13 . . . . . . 3 . . . . . . . . . . Terminal Hacks 196 | . 1 . 49 . 2 . . 5 . 1 25 . . 11 3 . 3 2 . 7 5 . 44 . . . 5 2 20 1 . 1 6 3 . Record 118 | . . . 48 . . . . . . . 11 . . . . . . . . . 3 . 36 . . . . . 20 . . . . . . Part Schematic 11 | . . . . . . . . . . . 5 . . 1 . . . . . . . . 4 . . . . . . 1 . . . . . Robot Schematic 6 | . . . . . . . . . . . 6 . . . . . . . . . . . . . . . . . . . . . . . . Robot Analysis 1 | . 1 . . . . . . . . . . . . . . . . . . . . . . . . . . . . . . . . . . Prototype ID Bank 8 | . . . . . 1 . . . . . 3 . . . . . . . . . . . 4 . . . . . . . . . . . . Open Door 8 | . . . . . . . . . . 1 . . . 4 . . . . . . 1 . . . . . . 1 . . . . . 1 . Level Access Points 1 | . . . . . . . . . . . . . . . . . 1 . . . . . . . . . . . . . . . . . . Branch Access Points 3 | . . . . . . . . 1 . . . . . . . . . 1 . . . . . . . . . . . . . 1 . . . Emergency Access Points 2 | . . . . . . . . . . . . . . . . . . . . 1 . . . . . . 1 . . . . . . . . Alert Level 12 | . . . . . 1 . . 1 . . . . . 3 1 . . 1 . 1 . . . . . . . 1 . . . . 3 . . Unreport Threat 7 | . . . . . . . . . . . . . . 1 2 . 1 . . . . . . . . . . . . . . . 3 . . Locate Traps 10 | . . . . . . . . 2 . . . . . 2 . . 1 . . 2 . . . . . . 2 . . . . . . 1 . Reprogram Traps 2 | . . . . . . . . . . . . . . . . . . . . 2 . . . . . . . . . . . . . . . Patrol Status 2 | . . . . . . . . . . . . . . . . . . . . . 1 . . . . . 1 . . . . . . . . Recall Extermination 1 | . . . . . . . . . . . . . . . . . . . . . . . . . . . . . . . . . . 1 . Recall Assault 1 | . . . . . . . . 1 . . . . . . . . . . . . . . . . . . . . . . . . . . . Hauler Manifests 2 | . . . . . . . . . . . . . . . . . . . . 1 . . . . . . 1 . . . . . . . . EX-Prototype ID Bank 1 | . . . 1 . . . . . . . . . . . . . . . . . . . . . . . . . . . . . . . . Fabricator Hacks 19 | . . . . . . . . . . . . . . . . . . 2 . 2 . . . . 1 . . 11 . 3 . . . . . Network Status 2 | . . . . . . . . . . . . . . . . . . . . . . . . . . . . 2 . . . . . . . Load Schematic 8 | . . . . . . . . . . . . . . . . . . 1 . 1 . . . . 1 . . 4 . 1 . . . . . Build 9 | . . . . . . . . . . . . . . . . . . 1 . 1 . . . . . . . 5 . 2 . . . . . Repair Station Hacks 7 | . . . . . . . . 1 . . . . . . . . . 4 . 2 . . . . . . . . . . . . . . . Scan Component 5 | . . . . . . . . 1 . . . . . . . . . 3 . 1 . . . . . . . . . . . . . . . Repair 2 | . . . . . . . . . . . . . . . . . . 1 . 1 . . . . . . . . . . . . . . . Recycling Unit Hacks 1 | . . . . . . . . . . . . . . . . . . . . . . . . . . . . 1 . . . . . . . Retrieve Components 1 | . . . . . . . . . . . . . . . . . . . . . . . . . . . . 1 . . . . . . . Scanalyzer 5 | . . . . . . . . 1 . . . . 2 . . . . . . . . . . . . . . . . 2 . . . . . Insert Component 4 | . . . . . . . . 1 . . . . 1 . . . . . . . . . . . . . . . . 2 . . . . . Analyze 1 | . . . . . . . . . . . . . 1 . . . . . . . . . . . . . . . . . . . . . . Garrison Access Hacks 3 | . . . . . 1 . . . . . . . . . . . . 1 . . . . . . 1 . . . . . . . . . . Unlock Access 1 | . . . . . 1 . . . . . . . . . . . . . . . . . . . . . . . . . . . . . . Seal Access 2 | . . . . . . . . . . . . . . . . . . 1 . . . . . . 1 . . . . . . . . . . Unauthorized Hacks 169 | . 4 . . . 7 3 . 6 . . . . 2 12 2 . 25 21 . 9 . . . . 2 . 10 44 . 8 . 6 4 4 . Terminals 35 | . 1 . . . 2 1 . 2 . . . . . 4 1 . 8 1 . 3 . . . . . . 2 4 . 1 . 2 2 1 . Track 3 | . . . . . . . . . . . . . . . . . 1 . . 1 . . . . . . . 1 . . . . . . . Assimilate 2 | . 1 . . . . . . . . . . . . 1 . . . . . . . . . . . . . . . . . . . . . Botnet 24 | . . . . . 2 1 . 2 . . . . . 3 1 . 2 1 . 2 . . . . . . 2 2 . 1 . 2 2 1 . Detonate 2 | . . . . . . . . . . . . . . . . . 2 . . . . . . . . . . . . . . . . . . Disrupt 1 | . . . . . . . . . . . . . . . . . . . . . . . . . . . . 1 . . . . . . . Sabotage 3 | . . . . . . . . . . . . . . . . . 3 . . . . . . . . . . . . . . . . . . Fabricators 7 | . . . . . . . . . . . . . . . . . . 1 . . . . . . . . . 6 . . . . . . . Report 1 | . . . . . . . . . . . . . . . . . . . . . . . . . . . . 1 . . . . . . . Prioritize 6 | . . . . . . . . . . . . . . . . . . 1 . . . . . . . . . 5 . . . . . . . Repair Stations . | . . . . . . . . . . . . . . . . . . . . . . . . . . . . . . . . . . . . Recycling Units 2 | . 1 . . . 1 . . . . . . . . . . . . . . . . . . . . . . . . . . . . . . Tunnel 2 | . 1 . . . 1 . . . . . . . . . . . . . . . . . . . . . . . . . . . . . . Scanalyzers . | . . . . . . . . . . . . . . . . . . . . . . . . . . . . . . . . . . . . Garrison Access 4 | . . . . . . . . . . . . . . . . . . 3 . . . . . . 1 . . . . . . . . . . Broadcast 3 | . . . . . . . . . . . . . . . . . . 2 . . . . . . 1 . . . . . . . . . . Reprogram 1 | . . . . . . . . . . . . . . . . . . 1 . . . . . . . . . . . . . . . . . Data Cores Recovered 3 | . . . . . . . . 1 . . . . . . . . . . . 1 . . . . . . . . . . . 1 . . . Used 2 | . . . . . . . . 1 . . . . . . . . . . . . . . . . . . . . . . . 1 . . . Hacking Detections 78 | . 1 . . . 3 2 . 14 . . . . 3 10 4 . 8 7 . 4 1 . . . 1 . 2 6 . 4 . 3 3 2 . Full Trace Events 10 | . . . . . 1 . . 2 . . . . 3 . . . . 1 . . 1 . . . . . . . . 1 . . 1 . . Feedback Events 2 | . . . . . . . . . . . . . . . . . . 1 . . . . . . . . . . . . . . 1 . . Corruption 2 | . . . . . . . . . . . . . . . . . . 1 . . . . . . . . . . . . . . 1 . . Feedback Blocked . | . . . . . . . . . . . . . . . . . . . . . . . . . . . . . . . . . . . . Robot Schematics Acquired 6 | . . . . . . . . . . . 6 . . . . . . . . . . . . . . . . . . . . . . . . Robots Built 9 | . . . . . . . . . . . . . . . . . . . . 3 . . . . . . . 6 . . . . . . . Matter 1053 | . . . . . . . . . . . . . . . . . . . . 351 . . . . . . . 702 . . . . . . . Time 467 | . . . . . . . . . . . . . . . . . . . . 93 . . . . . . . 374 . . . . . . . Total Robot Build Rating 63 | . . . . . . . . . . . . . . . . . . . . 21 . . . . . . . 42 . . . . . . . Part Schematics Acquired 11 | . . . . . . . . . . . 5 . . 1 . . . . . . . . 4 . . . . . . 1 . . . . . Parts Built 7 | . . . . . . . . . . . . . . . . . . 1 . . . . . . . . . 4 . 2 . . . . . Matter 1502 | . . . . . . . . . . . . . . . . . . 318 . . . . . . . . . 980 . 204 . . . . . Time 533 | . . . . . . . . . . . . . . . . . . 56 . . . . . . . . . 443 . 34 . . . . . Total Part Build Rating 40 | . . . . . . . . . . . . . . . . . . 6 . . . . . . . . . 32 . 2 . . . . . Parts Repaired 2 | . . . . . . . . . . . . . . . . . . 1 . 1 . . . . . . . . . . . . . . . Time 102 | . . . . . . . . . . . . . . . . . . 34 . 68 . . . . . . . . . . . . . . . Parts Recycled . | . . . . . . . . . . . . . . . . . . . . . . . . . . . . . . . . . . . . Recycled Matter . | . . . . . . . . . . . . . . . . . . . . . . . . . . . . . . . . . . . . Retrieved Matter . | . . . . . . . . . . . . . . . . . . . . . . . . . . . . . . . . . . . . Retrieved Components 1 | . . . . . . . . . . . . . . . . . . . . . . . . . . . . 1 . . . . . . . Parts Scanalyzed 1 | . . . . . . . . 1 . . . . . . . . . . . . . . . . . . . . . . . . . . . Part Schematics Acquired . | . . . . . . . . . . . . . . . . . . . . . . . . . . . . . . . . . . . . Parts Damaged . | . . . . . . . . . . . . . . . . . . . . . . . . . . . . . . . . . . . . Bothacking | -11 -10 -10 -10 -9 -8 -7 -7 -7 -7 -7 -7 -6 -6 -6 -6 -6 -6 -5 -5 -5 -5 -5 -5 -4 -4 -4 -4 -4 -4 -3 -3 -2 -1 -1 -1 ------------ Run | Scr Mat Min Exi Min Mat Fac Was Fac Low Low Dat Pro Fac Ext Cet Arc Hub Fac Was Fac Upp Upp Zhi Pro Fac Was Fac Arm Lab Res Qua Res Acc Com Ac0 Used RIF Installer . | . . . . . . . . . . . . . . . . . . . . . . . . . . . . . . . . . . . . Robots Hacked 8 | . . . . . . 1 . . . . 1 . . 1 . . . 1 . . 1 . . . 1 . . . . . . . . 1 1 Non-combat 3 | . . . . . . 1 . . . . . . . . . . . 1 . . . . . . 1 . . . . . . . . . . Combat 4 | . . . . . . . . . . . 1 . . 1 . . . . . . 1 . . . . . . . . . . . . . 1 Robot Hacks Applied 8 | . . . . . . 1 . . . . 1 . . 1 . . . 1 . . 1 . . . 1 . . . . . . . . . 2 parse_system 5 | . . . . . . . . . . . 1 . . 1 . . . . . . 1 . . . . . . . . . . . . . 2 find_chute 3 | . . . . . . 1 . . . . . . . . . . . 1 . . . . . . 1 . . . . . . . . . . Manual 1 | . . . . . . . . . . . . . . . . . . . . . . . . . . . . . . . . . . 1 . Relay Couplers Released 6 | . . . . . . . . 1 . . . . . . . . 2 . . . . . . . . . 2 . . . 1 . . . . Machine Destruction 6 | . . . . . . . . 1 . . . . . . . . 2 . . . . . . . . . 2 . . . 1 . . . . Robots Rewired 24 | . . . . . . . . . 3 . . . . 19 . . . . . . . . . . . . . 2 . . . . . . . Allies Hacked 2 | . . . . . . . . . . . . . . . . . . . . . . . . . . . 1 1 . . . . . . . Hacks Repelled . | . . . . . . . . . . . . . . . . . . . . . . . . . . . . . . . . . . . . Allies | -11 -10 -10 -10 -9 -8 -7 -7 -7 -7 -7 -7 -6 -6 -6 -6 -6 -6 -5 -5 -5 -5 -5 -5 -4 -4 -4 -4 -4 -4 -3 -3 -2 -1 -1 -1 -------- Run | Scr Mat Min Exi Min Mat Fac Was Fac Low Low Dat Pro Fac Ext Cet Arc Hub Fac Was Fac Upp Upp Zhi Pro Fac Was Fac Arm Lab Res Qua Res Acc Com Ac0 Total Allies 88 | . 1 2 . 3 . . 19 . 3 . . . . 26 5 . . . . 3 . . . . . 18 . 8 . . . . . . . Largest Group 20 | . 1 3 3 3 . . 19 19 4 3 3 3 . 20 15 8 5 . . 3 2 . . . . 18 9 4 . . . . . . . Highest-Rated Group 868 | . 10 56 56 40 . . 477 477 124 93 93 93 . 712 868 590 322 . . 141 91 . . . . 668 374 154 . . . . . . . Highest-Rated Ally 156 | . 10 31 31 16 . . 35 35 32 31 31 31 . 156 150 142 94 . . 47 47 . . . . 50 50 47 . . . . . . . Total Orders 113 | . . . . . . . . . 2 . 2 2 . . 4 . 1 . . 4 9 18 . 2 . . . 18 5 . . 31 11 4 . STAY 4 | . . . . . . . . . . . . . . . . . . . . . . . . . . . . 4 . . . . . . . GOTO 26 | . . . . . . . . . 1 . 1 1 . . 4 . 1 . . 2 . 1 . 1 . . . 5 . . . 8 1 . . ROAM 1 | . . . . . . . . . . . . . . . . . . . . . . . . . . . . . . . . . 1 . . FOLLOW 13 | . . . . . . . . . 1 . 1 1 . . . . . . . 2 . 2 . 1 . . . 2 . . . 2 1 . . RETURN 69 | . . . . . . . . . . . . . . . . . . . . . 9 15 . . . . . 7 5 . . 21 8 4 . Ally Attacks 1361 | . . 9 . 1 . . . 209 10 34 . 23 . 211 107 12 63 . . 22 71 54 . 2 . 69 45 45 31 . . 211 80 52 . Total Damage 31282 | . . 171 . 14 . . . 3759 155 582 . 409 . 4113 2598 262 2144 . . 566 1271 957 . 30 . 4486 1681 1005 617 . . 4302 1232 928 . Kills 193 | . . 3 . . . . . 39 . 2 . 3 . 32 22 2 18 . . 2 8 8 . . . 13 11 3 2 . . 16 6 3 . Allies Corrupted 5 | . . . . 1 . . . . . . . . . . . . . . . . . . . . . 1 3 . . . . . . . . Allies Melted . | . . . . . . . . . . . . . . . . . . . . . . . . . . . . . . . . . . . . Intel | -11 -10 -10 -10 -9 -8 -7 -7 -7 -7 -7 -7 -6 -6 -6 -6 -6 -6 -5 -5 -5 -5 -5 -5 -4 -4 -4 -4 -4 -4 -3 -3 -2 -1 -1 -1 ------- Run | Scr Mat Min Exi Min Mat Fac Was Fac Low Low Dat Pro Fac Ext Cet Arc Hub Fac Was Fac Upp Upp Zhi Pro Fac Was Fac Arm Lab Res Qua Res Acc Com Ac0 Robot Analysis Total 116 | . 1 . . . . . . . . . 115 . . . . . . . . . . . . . . . . . . . . . . . . Derelict Logs Recovered 15 | . . 1 . 1 . . . . 2 3 . 2 . . . . . . . . 1 2 . 3 . . . . . . . . . . . Drone Launches 112 | . . . . . . . . . . . . . . . . . . . . . 16 22 2 . . . . 13 7 . . 30 12 10 . Drone Recoveries 106 | . . . . . . . . . . . . . . . . . . . . . 14 24 . . . . . 11 7 . . 29 13 8 . Exploration | -11 -10 -10 -10 -9 -8 -7 -7 -7 -7 -7 -7 -6 -6 -6 -6 -6 -6 -5 -5 -5 -5 -5 -5 -4 -4 -4 -4 -4 -4 -3 -3 -2 -1 -1 -1 ------------- Run | Scr Mat Min Exi Min Mat Fac Was Fac Low Low Dat Pro Fac Ext Cet Arc Hub Fac Was Fac Upp Upp Zhi Pro Fac Was Fac Arm Lab Res Qua Res Acc Com Ac0 Turns Passed 41173 | 83 202 1622 1002 1638 864 1189 814 1680 1570 1413 296 1372 407 1050 507 792 2001 2147 547 811 3998 986 183 1230 639 483 1339 1389 396 476 668 457 387 6299 236 Spaces Moved 22093 | 38 112 917 516 783 431 709 597 1273 1216 998 200 1056 231 638 245 47 760 1005 346 505 1074 804 147 976 281 301 455 669 195 249 246 202 198 3318 355 Core 11 | 1 . . . . . . . . . . . . . . . . . . . . . . . . . . . . . . 2 8 . . . Treads 7064 | 37 112 917 516 472 . . . . . . . . . . 220 47 760 77 . . . . . . . . . . 137 30 72 181 198 3288 . Legs . | . . . . . . . . . . . . . . . . . . . . . . . . . . . . . . . . . . . . Wheels 14620 | . . . . 311 431 709 597 1273 1216 998 200 1056 231 638 25 . . 928 346 505 1074 804 147 976 281 301 455 669 58 219 172 . . . . Hover 398 | . . . . . . . . . . . . . . . . . . . . . . . . . . . . . . . . 13 . 30 355 Flight . | . . . . . . . . . . . . . . . . . . . . . . . . . . . . . . . . . . . . Fastest Speed 33 | 50 160 160 160 160 120 106 106 116 106 116 130 116 116 126 126 180 160 103 113 113 106 106 116 116 123 123 123 123 133 120 120 50 165 53 33 Average Speed 136 | 157 160 167 190 184 121 125 111 116 113 128 135 116 123 126 174 180 180 140 119 120 109 109 116 117 133 130 129 135 169 129 157 143 165 161 46 Slowest Speed 300 | 160 160 180 200 240 130 180 116 130 116 140 140 140 126 126 180 180 200 180 123 123 123 116 116 130 170 150 150 160 185 210 300 300 165 205 66 Overloaded Moves 195 | . . . . . . . . . . . . . . . . . . . . . . . . . . . . . . . . . . . 195 Propulsion Burnouts . | . . . . . . . . . . . . . . . . . . . . . . . . . . . . . . . . . . . . Robots Hopped . | . . . . . . . . . . . . . . . . . . . . . . . . . . . . . . . . . . . . Cave-ins Triggered 5 | . . . . . . . . . . . . . . . . . . . . . . . . . . . . . . . . . . 5 . Teleports 1 | . . . . . . . . . . . . . . . . . . . . . . . . . . . . . . . 1 . . . . Exploration Rate (%) 59 | 4 30 100 91 98 36 26 96 37 95 98 77 96 11 88 80 72 77 26 99 16 99 91 63 97 9 88 21 40 99 10 34 6 9 93 27 Regions Visited 35 Branch Regions 20 Pre-discovered Areas 35 | . 1 1 1 1 1 . . . . 1 26 . . . . . . . . . . . 3 . . . . . . . . . . . . Known Exits Taken 9 | . . . . . . . . 1 1 1 1 1 . . . . 1 . . 1 . . . . . . . . . 1 1 . . . . Unknown Exits Taken 20 | 1 1 1 1 1 1 . . . . . . . 1 1 1 1 . . . . 1 1 1 1 . . 1 1 1 . . 1 1 1 . Scrap Searched 19 | . . 1 . 1 . . . . 4 3 . 4 . . . . . . . . 3 2 . 1 . . . . . . . . . . . Spaces Dug 370 | . . 8 . 40 . 8 13 14 6 15 . 36 9 8 . . 18 12 4 2 . 5 . 32 3 7 12 29 . 2 3 . . 71 13 Terrain Destroyed 1364 | . . 13 . 110 20 79 181 61 28 76 16 58 11 27 1 . 70 25 16 3 6 8 . 32 43 11 32 106 . 2 118 1 26 170 14 Melee 76 | . . . . . . . 4 14 . . . 7 5 . . . . . . . . . . . . . . . . . . . . 46 . Projectile 300 | . . . . . . 1 . 1 7 1 . . 6 15 1 . 39 25 16 3 6 8 . 10 18 11 25 45 . 2 5 1 3 37 14 AOE 988 | . . 13 . 110 20 78 177 46 21 75 16 51 . 12 . . 31 . . . . . . 22 25 . 7 61 . . 113 . 23 87 . Actions | -11 -10 -10 -10 -9 -8 -7 -7 -7 -7 -7 -7 -6 -6 -6 -6 -6 -6 -5 -5 -5 -5 -5 -5 -4 -4 -4 -4 -4 -4 -3 -3 -2 -1 -1 -1 --------- Run | Scr Mat Min Exi Min Mat Fac Was Fac Low Low Dat Pro Fac Ext Cet Arc Hub Fac Was Fac Upp Upp Zhi Pro Fac Was Fac Arm Lab Res Qua Res Acc Com Ac0 Total 31087 | 52 131 985 540 929 662 921 684 1415 1336 1095 225 1150 303 787 297 747 1145 1531 400 665 3860 870 158 1021 467 346 1073 1003 259 443 635 343 232 3964 413 Wait 5475 | . 11 44 . 91 74 131 30 49 6 30 . 38 7 36 1 697 200 219 . 75 2726 26 . 1 40 1 483 130 16 69 28 81 . 131 4 Move 22056 | 37 111 916 515 782 430 709 596 1272 1215 997 199 1055 230 637 244 46 759 1005 345 504 1073 803 146 975 281 300 454 668 194 248 245 201 197 3312 355 Hop . | . . . . . . . . . . . . . . . . . . . . . . . . . . . . . . . . . . . . Pick Up 420 | 6 4 2 20 7 17 9 5 9 11 10 4 7 8 3 7 . 12 51 2 13 9 1 2 7 14 3 19 26 10 16 14 10 9 70 3 Fast Attach 266 | 6 1 2 1 1 16 3 . 11 3 4 . 1 4 . 6 . . 25 2 7 4 5 5 1 18 3 8 9 11 12 18 21 4 46 8 Attach 223 | . . . . 7 7 1 . 1 1 6 2 1 5 1 2 . 11 22 . 3 5 1 . 3 8 5 12 21 2 11 35 6 3 26 15 Detach 90 | . . . . . 2 . . . 1 2 . . 2 . 1 . . 7 1 3 1 1 . 2 4 1 2 11 2 8 19 5 4 7 4 Swap 310 | . 1 3 . 7 17 15 11 17 21 17 4 21 12 22 2 . 16 10 3 8 9 5 1 6 9 2 3 7 2 7 8 . 1 43 . Drop 451 | . 1 5 4 3 25 8 9 21 3 10 8 2 6 4 16 . 3 30 5 17 12 6 4 3 27 5 12 19 17 27 20 5 . 114 . Fire 1522 | 3 2 8 . 28 73 44 29 18 38 19 . 16 20 40 18 4 132 158 41 34 20 22 . 23 66 26 80 100 5 45 222 14 13 137 24 Melee 127 | . . . . . . 1 4 17 . . 2 9 9 36 . . . 1 . . . . . . . . . . . . . . . 48 . Ram 5 | . . . . . . . . . . . . . . . . . . 1 1 1 . . . . . . . . . . 2 . . . . Kick . | . . . . . . . . . . . . . . . . . . . . . . . . . . . . . . . . . . . . Crush 31 | . . 5 . 3 1 . . . . . . . . . . . 12 2 . . . . . . . . . . . . 5 . 1 2 . Escape Stasis 54 | . . . . . . . . . . . . . . 8 . . . . . . . . . . . . . . . . 19 . . 27 . Rewire 49 | . . . . . . . . . 37 . . . . . . . . . . . . . . . . . . 12 . . . . . . . Trap 6 | . . . . . . . . . . . 6 . . . . . . . . . . . . . . . . . . . . . . . . Miscellaneous 2 | . . . . . . . . . . . . . . . . . . . . . 1 . . . . . . . . . . . . 1 . Route ------- -11/Scrapyard -10/Materials -10/Mines (discovered 3 exits: [*Mat x2] / *Exi) -10/Exiles -9/Mines (discovered 2 exits: *Mat x2) -8/Materials (discovered 2 exits: *Fac x2) -7/Factory -7/Waste -7/Factory (discovered 3 exits: *Fac / *Low x2) -7/Lower Caves -7/Lower Caves (discovered 2 exits: *Fac / *Dat) -7/Data Miner -6/Proximity Caves -6/Factory (discovered 2 exits: Low / *Ext) -6/Extension (discovered 2 exits: *Fac / *Cet) -6/Cetus (discovered 2 exits: *Fac / [*Arc]) -6/Archives -6/Hub_04(d) (discovered 4 exits: *Fac x4) -5/Factory (discovered 2 exits: Upp x2) -5/Waste -5/Factory -5/Upper Caves -5/Upper Caves (discovered 2 exits: *Fac / *Zhi) -5/Zhirov -4/Proximity Caves -4/Factory (discovered 3 exits: *Res / *Upp x2) -4/Waste -4/Factory -4/Armory (discovered 2 exits: *Res / *Lab) -4/Lab -3/Research (discovered 2 exits: Res / *Qua) -3/Quarantine -2/Research (discovered 3 exits: *Acc / Tes x2) -1/Access -1/Command (discovered 3 exits: [*Sur x2] / [*Ac0]) -1/Access_0 History --------- Turn | Location | Event 11 | -11/Scrapyard | Discovered new exit (range 15) 84 | -11/Scrapyard | Entered Materials 227 | -10/Materials | Discovered new exit (range 16) 237 | -10/Materials | Central database locked down 286 | -10/Materials | Entered Mines 286 | -10/Mines | Accompanied by 1 ally 316 | -10/Mines | Build established: Mutant 772 | -10/Mines | Discovered new exit (range 15) 1005 | -10/Mines | Discovered new exit (range 9) 1246 | -10/Mines | Deemed a non-threat by the Exiles lab entrance 1248 | -10/Mines | Discovered new exit (range 5) 1908 | -10/Mines | Entered Exiles 1908 | -10/Exiles | Accompanied by 3 allies 1938 | -10/Exiles | Led the pair of lost Derelicts to a safe place 1953 | -10/Exiles | Met 8R-AWN 1984 | -10/Exiles | Met EX-HEX 2054 | -10/Exiles | Met EX-DEC 2061 | -10/Exiles | Learned location of Zion (-6) 2090 | -10/Exiles | Met EX-BIN 2117 | -10/Exiles | Aligned with FarCom system 2119 | -10/Exiles | Given EX-Vault access code 2191 | -10/Exiles | Opened EX-Vault 2202 | -10/Exiles | Found YOLO Cannon 2242 | -10/Exiles | Warned to stay clear of 0b10 Research branches 2497 | -10/Exiles | Visited The Gauntlet 2642 | -10/Exiles | Build established: Hauler-Mutant 2892 | -10/Exiles | Discovered new exit (range 10) 2910 | -10/Exiles | Left Exiles lab with YOLO Cannon 2910 | -10/Exiles | Entered Mines 2910 | -9/Mines | Accompanied by 1 ally 3489 | -9/Mines | Discovered new exit (range 14) 3804 | -9/Mines | Assisted by bots powering up and referring to "LRC-V3" 3857 | -9/Mines | Assembled infested the area 3862 | -9/Mines | Assisted by a Guerilla fighting off Assembled 3909 | -9/Mines | Core integrity fell below 50% 3933 | -9/Mines | Destroyed 11 combat bots 3939 | -9/Mines | Lost 3 parts (2n1w) 4067 | -9/Mines | Received a Rocket Launcher from a helpful Derelict 4117 | -9/Mines | Discovered new exit (range 7) 4339 | -9/Mines | Learned location of Storage (-9) 4548 | -9/Mines | Core integrity fell below 20% 4548 | -9/Mines | Entered Materials 4548 | -8/Materials | Evolved 4 slots: Propulsion x1, Utility x3 4572 | -8/Materials | Lost 3 parts (1p2w) 4672 | -8/Materials | Identified exit to Garrison 4691 | -8/Materials | Garrison activated, responded to threat 4739 | -8/Materials | Discovered new exit (range 7) 5228 | -8/Materials | Discovered new exit (range 16) 5412 | -8/Materials | Entered Factory 5412 | -7/Factory | Evolved 2 slots: Utility x2 5413 | -7/Factory | Identified exit to Lower Caves 6601 | -7/Factory | Sucked down chute 6601 | -7/Factory | Entered Waste 6699 | -7/Waste | Spotted C-40 Crusher 6715 | -7/Waste | Spotted C-40 Crusher 6733 | -7/Waste | Spotted C-40 Crusher 6745 | -7/Waste | Spotted C-40 Crusher 6776 | -7/Waste | Spotted C-40 Crusher 6809 | -7/Waste | Destroyed C-40 Crusher 6826 | -7/Waste | Spotted C-40 Crusher 6866 | -7/Waste | Destroyed C-40 Crusher 6878 | -7/Waste | Destroyed C-40 Crusher 6896 | -7/Waste | Discovered new exit (range 11) 6904 | -7/Waste | Destroyed C-40 Crusher 6938 | -7/Waste | Destroyed C-40 Crusher 6938 | -7/Waste | Destroyed C-40 Crusher 6963 | -7/Waste | Warlord forces began an assault 7415 | -7/Waste | Entered Factory 7415 | -7/Factory | Accompanied by 19 allies 8440 | -7/Factory | Discovered new exit (range 7) 8615 | -7/Factory | First assault squad dispatched 9095 | -7/Factory | Entered Lower Caves 9095 | -7/Lower Caves | Accompanied by 4 allies 9370 | -7/Lower Caves | Learned Factory security intel 9374 | -7/Lower Caves | Build established: Hauler-Skirmisher 9495 | -7/Lower Caves | Spotted B-75 Beast 9560 | -7/Lower Caves | Identified exit to Lower Caves 9738 | -7/Lower Caves | Attacked by a delusional Derelict stockpiling Unaware 10665 | -7/Lower Caves | Entered another Lower Caves area 10665 | -7/Lower Caves | Accompanied by 3 allies 10831 | -7/Lower Caves | Spotted B-75 Beast 10854 | -7/Lower Caves | Allies destroyed B-75 Beast 10877 | -7/Lower Caves | Learned Factory stockpile data 11073 | -7/Lower Caves | Discovered new exit (range 19) 11233 | -7/Lower Caves | Attracted the attention of an 0b10 checkpoint 11251 | -7/Lower Caves | Identified exit to Data Miner 11300 | -7/Lower Caves | Learned Factory emergency access door positions 11325 | -7/Lower Caves | Encountered a Warlord checkpoint 11619 | -7/Lower Caves | Discovered new exit (range 13) 11658 | -7/Lower Caves | Identified exit to Factory 12078 | -7/Lower Caves | Entered Data Miner 12078 | -7/Data Miner | Accompanied by 3 allies 12079 | -7/Data Miner | Discovered new exit (range 6) 12086 | -7/Data Miner | Identified exit to Proximity Caves 12104 | -7/Data Miner | Met Data Miner 12126 | -7/Data Miner | Learned location of Section 7 (-2) 12126 | -7/Data Miner | Acquired the access code to Warlord's prototype stash 12147 | -7/Data Miner | Received God Mode back door access code from Data Miner 12322 | -7/Data Miner | Interfaced with the Data Conduit 12374 | -7/Data Miner | Entered Proximity Caves 12374 | -6/Proximity Caves | Accompanied by 3 allies 13191 | -6/Proximity Caves | Learned location of 1 exit from Factory 13230 | -6/Proximity Caves | Discovered exit to Factory (range 7) 13273 | -6/Proximity Caves | Spotted B-75 Beast 13334 | -6/Proximity Caves | Learned 8 Factory zone layouts 13575 | -6/Proximity Caves | Build established: Hauler-Assassin 13746 | -6/Proximity Caves | Entered Factory 13746 | -6/Factory | Evolved 2 slots: Power x1, Utility x1 13747 | -6/Factory | Identified exit to Lower Caves 13752 | -6/Factory | Loaded intel: 265 machine locations 13838 | -6/Factory | Garrison activated, responded to threat 13964 | -6/Factory | Found Exp. Signal Interpreter 14002 | -6/Factory | Discovered new exit (range 22) 14153 | -6/Factory | Entered Extension 14154 | -6/Extension | Loaded intel: 33 machine locations 14330 | -6/Extension | Rescued a captive Derelict 14333 | -6/Extension | Rescued a captive Derelict 14366 | -6/Extension | Rescued A7 14483 | -6/Extension | Build established: Hauler-Mutant 14762 | -6/Extension | Spotted B-75 Beast 14772 | -6/Extension | Allies destroyed B-75 Beast 14791 | -6/Extension | Spotted B-75 Beast 14796 | -6/Extension | Allies destroyed B-75 Beast 15024 | -6/Extension | Rescued a captive Derelict 15025 | -6/Extension | Rescued a captive Derelict 15052 | -6/Extension | Rescued a captive Derelict 15052 | -6/Extension | Rescued a captive Derelict 15062 | -6/Extension | Build established: Commander-Mutant 15165 | -6/Extension | Discovered new exit (range 10) 15166 | -6/Extension | Discovered new exit (range 6) 15203 | -6/Extension | First assault squad dispatched 15203 | -6/Extension | Entered Cetus 15203 | -6/Cetus | Accompanied by 15 allies 15204 | -6/Cetus | Loaded intel: 24 machine locations 15208 | -6/Cetus | Acquired a Cetus Manufacturing Module code from A7 15220 | -6/Cetus | Spotted Cetus Guard 15220 | -6/Cetus | Spotted Cetus Guard 15222 | -6/Cetus | Spotted Cetus Guard 15222 | -6/Cetus | Spotted Cetus Guard 15225 | -6/Cetus | Allies destroyed Cetus Guard 15233 | -6/Cetus | Allies destroyed Cetus Guard 15235 | -6/Cetus | Allies destroyed Cetus Guard 15237 | -6/Cetus | Allies destroyed Cetus Guard 15358 | -6/Cetus | Started Cetus Manufacturing Module 15374 | -6/Cetus | Escorted A7 to Cetus Mainframe 15383 | -6/Cetus | Manufactured an Enhanced Grunt 15408 | -6/Cetus | Manufactured an Enhanced Grunt 15433 | -6/Cetus | Manufactured an Enhanced Grunt 15458 | -6/Cetus | Manufactured an Enhanced Grunt 15479 | -6/Cetus | Discovered new exit (range 15) 15483 | -6/Cetus | Manufactured an Enhanced Grunt 15526 | -6/Cetus | Spotted Cetus Guard 15526 | -6/Cetus | Spotted Cetus Guard 15529 | -6/Cetus | Spotted Cetus Guard 15538 | -6/Cetus | Allies destroyed Cetus Guard 15542 | -6/Cetus | Allies destroyed Cetus Guard 15543 | -6/Cetus | Allies destroyed Cetus Guard 15543 | -6/Cetus | Spotted Cetus Guard 15550 | -6/Cetus | Allies destroyed Cetus Guard 15565 | -6/Cetus | Discovered new exit (range 15) 15577 | -6/Cetus | Met Revision 17 15710 | -6/Cetus | Entered Archives 15710 | -6/Archives | Accompanied by 8 allies 15711 | -6/Archives | Loaded intel: 8 machine locations 15715 | -6/Archives | Received a hacking code to weaken MAIN.C 15767 | -6/Archives | Discovered new exit (range 15) 15913 | -6/Archives | Build established: Hauler-Mutant 16502 | -6/Archives | Entered Hub_04(d) 16502 | -6/Hub_04(d) | Accompanied by 5 allies 16503 | -6/Hub_04(d) | Loaded intel: 114 machine locations 16598 | -6/Hub_04(d) | Discovered new exit (range 16) 16673 | -6/Hub_04(d) | Discovered new exit (range 12) 16812 | -6/Hub_04(d) | Identified exit to Factory 17054 | -6/Hub_04(d) | Intercept squad dispatched 17060 | -6/Hub_04(d) | Spotted Tracker 17083 | -6/Hub_04(d) | Spotted Combat Programmer 17090 | -6/Hub_04(d) | Destroyed Combat Programmer 17202 | -6/Hub_04(d) | First assault squad dispatched 17382 | -6/Hub_04(d) | Network Hub disabled 17382 | -6/Hub_04(d) | Network Hub disabled 17438 | -6/Hub_04(d) | Network Hub disabled 17438 | -6/Hub_04(d) | Network Hub disabled 17966 | -6/Hub_04(d) | Destroyed Tracker 17975 | -6/Hub_04(d) | Found Exp. Targeting Computer 18103 | -6/Hub_04(d) | Spotted Lightning 18107 | -6/Hub_04(d) | Destroyed Lightning 18144 | -6/Hub_04(d) | Spotted Lightning 18187 | -6/Hub_04(d) | Spotted Lightning 18191 | -6/Hub_04(d) | Spotted Lightning 18194 | -6/Hub_04(d) | Destroyed Lightning 18197 | -6/Hub_04(d) | System corruption reached 10% 18206 | -6/Hub_04(d) | Destroyed Lightning 18206 | -6/Hub_04(d) | Destroyed Lightning 18236 | -6/Hub_04(d) | Lost 5 parts (2u3w) 18355 | -6/Hub_04(d) | Destroyed Lightning 18378 | -6/Hub_04(d) | Spotted Lightning 18381 | -6/Hub_04(d) | Spotted Lightning 18398 | -6/Hub_04(d) | Destroyed Lightning 18409 | -6/Hub_04(d) | Destroyed Lightning 18442 | -6/Hub_04(d) | Intercept squad dispatched 18447 | -6/Hub_04(d) | Spotted Tracker 18449 | -6/Hub_04(d) | Spotted Tracker 18454 | -6/Hub_04(d) | Core integrity fell below 50% 18463 | -6/Hub_04(d) | Destroyed Tracker 18472 | -6/Hub_04(d) | Spotted Combat Programmer 18475 | -6/Hub_04(d) | Destroyed Tracker 18489 | -6/Hub_04(d) | Found Exp. Targeting Computer 18495 | -6/Hub_04(d) | Spotted Combat Programmer 18499 | -6/Hub_04(d) | Found Exp. Phase Shifter 18503 | -6/Hub_04(d) | Entered Factory 18503 | -5/Factory | Evolved 2 slots: Utility x2 18504 | -5/Factory | Loaded intel: 240 machine locations 18532 | -5/Factory | Lost 11 parts (2p2n5u2w) 18809 | -5/Factory | Repaired Quantum Reactor 19459 | -5/Factory | Intercept squad dispatched 19479 | -5/Factory | Spotted Tracker 19486 | -5/Factory | Destroyed Tracker 19490 | -5/Factory | Found Exp. Targeting Computer 19537 | -5/Factory | Spotted Combat Programmer 19545 | -5/Factory | Destroyed Combat Programmer 19668 | -5/Factory | Found Exp. Phase Shifter 19729 | -5/Factory | Build established: Scavenger-Skirmisher 19909 | -5/Factory | Fabricated Combat Drone Bay (x1) 20003 | -5/Factory | First assault squad dispatched 20127 | -5/Factory | Lost 3 parts (1n2u) 20147 | -5/Factory | Destroyed 9 combat bots 20186 | -5/Factory | Identified exit to Upper Caves 20210 | -5/Factory | Intercept squad dispatched 20220 | -5/Factory | Spotted Tracker 20230 | -5/Factory | Destroyed Tracker 20230 | -5/Factory | Spotted Tracker 20240 | -5/Factory | Destroyed Tracker 20246 | -5/Factory | Spotted Combat Programmer 20255 | -5/Factory | Destroyed Combat Programmer 20281 | -5/Factory | Lost 5 parts (1p2n1u1w) 20298 | -5/Factory | Spotted Combat Programmer 20317 | -5/Factory | System corruption reached 10% 20317 | -5/Factory | Destroyed Combat Programmer 20347 | -5/Factory | Lost 3 parts (1p2n) 20375 | -5/Factory | Build established: Scavenger-Mutant 20643 | -5/Factory | Intercept squad dispatched 20650 | -5/Factory | Sucked down chute 20650 | -5/Factory | Entered Waste 20656 | -5/Waste | Found Fusion Bomb Launcher 20665 | -5/Waste | EMP discharged 20696 | -5/Waste | Destroyed C-40 Crusher 20710 | -5/Waste | Spotted C-40 Crusher 20713 | -5/Waste | Spotted C-40 Crusher 20716 | -5/Waste | Found Damper Plating 20726 | -5/Waste | Spotted C-40 Crusher 20743 | -5/Waste | Destroyed C-40 Crusher 20765 | -5/Waste | EMP discharged 20782 | -5/Waste | Spotted C-40 Crusher 20784 | -5/Waste | Spotted C-40 Crusher 20790 | -5/Waste | Destroyed C-40 Crusher 20863 | -5/Waste | Destroyed C-40 Crusher 20865 | -5/Waste | EMP discharged 20903 | -5/Waste | Destroyed C-40 Crusher 20965 | -5/Waste | EMP discharged 20968 | -5/Waste | Destroyed C-40 Crusher 21065 | -5/Waste | EMP discharged 21130 | -5/Waste | Discovered new exit (range 10) 21165 | -5/Waste | EMP discharged 21197 | -5/Waste | Entered Factory 21198 | -5/Factory | Loaded intel: 247 machine locations 21391 | -5/Factory | Local fabrication network quarantined 21399 | -5/Factory | Fabricated G-67 Veteran? 21427 | -5/Factory | Repaired Fusion Bomb Launcher? 21479 | -5/Factory | Discovered exit to Upper Caves (range 7) 21610 | -5/Factory | Intercept squad dispatched 21618 | -5/Factory | Spotted Tracker 21623 | -5/Factory | Destroyed Tracker 21653 | -5/Factory | Spotted Combat Programmer 21663 | -5/Factory | Allies destroyed Combat Programmer 22003 | -5/Factory | Intercept squad dispatched 22008 | -5/Factory | Entered Upper Caves 22008 | -5/Upper Caves | Accompanied by 2 allies 22010 | -5/Upper Caves | Attracted the attention of an 0b10 checkpoint 22035 | -5/Upper Caves | Learned location of 1 exit from Factory 24839 | -5/Upper Caves | Spotted B-75 Beast 24861 | -5/Upper Caves | Allies destroyed B-75 Beast 25312 | -5/Upper Caves | Ambushed by wild Derelicts 25556 | -5/Upper Caves | Discovered new exit (range 11) 25638 | -5/Upper Caves | Encountered a Warlord checkpoint 25966 | -5/Upper Caves | Build established: Scavenger-Skirmisher 26006 | -5/Upper Caves | Entered another Upper Caves area 26006 | -5/Upper Caves | Accompanied by 2 allies 26130 | -5/Upper Caves | Discovered new exit (range 13) 26488 | -5/Upper Caves | Discovered new exit (range 18) 26593 | -5/Upper Caves | Core integrity fell below 50% 26992 | -5/Upper Caves | Entered Zhirov 26992 | -5/Zhirov | Discovered new exit (range 3) 27013 | -5/Zhirov | Met Zhirov 27056 | -5/Zhirov | Zhirov requested help retrieving the SGEMP Prototype 27078 | -5/Zhirov | Found Alien Artifact 27078 | -5/Zhirov | Identified Integrated Dissipator 27078 | -5/Zhirov | Installed Integrated Dissipator, increased core heat dissipation (+2%) 27096 | -5/Zhirov | Found Alien Artifact 27175 | -5/Zhirov | Entered Proximity Caves 27175 | -4/Proximity Caves | Accompanied by 2 allies 27262 | -4/Proximity Caves | Learned Research terminal intel 27512 | -4/Proximity Caves | Learned 8 Research zone layouts 28118 | -4/Proximity Caves | Discovered new exit (range 11) 28171 | -4/Proximity Caves | Build established: Scavenger-Mutant 28349 | -4/Proximity Caves | Learned Research non-interactive machine intel 28405 | -4/Proximity Caves | Entered Factory 28405 | -4/Factory | Evolved 2 slots: Weapon x2 28406 | -4/Factory | Identified exit to Upper Caves 28407 | -4/Factory | Loaded intel: 289 machine locations 28478 | -4/Factory | Discovered exit to Upper Caves (range 7) 28629 | -4/Factory | Discovered new exit (range 19) 28916 | -4/Factory | Intercept squad dispatched 28917 | -4/Factory | Spotted Tracker 28918 | -4/Factory | Spotted Tracker 28925 | -4/Factory | Spotted Combat Programmer 28931 | -4/Factory | Destroyed Tracker 28933 | -4/Factory | Destroyed Tracker 28942 | -4/Factory | Destroyed Combat Programmer 28951 | -4/Factory | Found Prototype Device 28951 | -4/Factory | Identified Exp. Phase Shifter 28979 | -4/Factory | Spotted Combat Programmer 28992 | -4/Factory | Destroyed Combat Programmer 29044 | -4/Factory | Sucked down chute 29044 | -4/Factory | Entered Waste 29059 | -4/Waste | EMP discharged 29095 | -4/Waste | Spotted C-40 Crusher 29096 | -4/Waste | Destroyed C-40 Crusher 29110 | -4/Waste | Spotted C-40 Crusher 29159 | -4/Waste | EMP discharged 29196 | -4/Waste | Spotted C-40 Crusher 29210 | -4/Waste | Spotted C-40 Crusher 29212 | -4/Waste | Spotted C-40 Crusher 29217 | -4/Waste | Crushed by Compactor (0 parts destroyed, 1 dropped) 29220 | -4/Waste | Crushed by Compactor (1 part destroyed, 1 dropped) 29220 | -4/Waste | Crushed by Compactor (1 part destroyed, 1 dropped) 29251 | -4/Waste | Met Warlord forces unprepared to attack 29259 | -4/Waste | EMP discharged 29259 | -4/Waste | Allies destroyed C-40 Crusher 29262 | -4/Waste | Allies destroyed C-40 Crusher 29264 | -4/Waste | Allies destroyed C-40 Crusher 29275 | -4/Waste | Allies destroyed C-40 Crusher 29289 | -4/Waste | Spotted C-40 Crusher 29289 | -4/Waste | Allies destroyed C-40 Crusher 29311 | -4/Waste | Found Damper Plating 29359 | -4/Waste | EMP discharged 29459 | -4/Waste | EMP discharged 29489 | -4/Waste | Discovered new exit (range 13) 29527 | -4/Waste | Entered Factory 29527 | -4/Factory | Accompanied by 9 allies 29528 | -4/Factory | Loaded intel: 255 machine locations 29705 | -4/Factory | P-70 Sage assimilated allied QA-OP8(m) 29719 | -4/Factory | Spotted B-86 Titan 29727 | -4/Factory | Allies destroyed B-86 Titan 29987 | -4/Factory | Intercept squad dispatched 29999 | -4/Factory | Spotted Tracker 30004 | -4/Factory | Destroyed Tracker 30005 | -4/Factory | Garrison activated, responded to threat 30057 | -4/Factory | Found Exp. Phase Shifter 30121 | -4/Factory | Spotted Combat Programmer 30126 | -4/Factory | Build established: Hauler-Mutant 30136 | -4/Factory | Destroyed Combat Programmer 30334 | -4/Factory | Discovered new exit (range 11) 30411 | -4/Factory | Lost 7 parts (1p1n1u4w) 30672 | -4/Factory | Build established: Scavenger-Mutant 30866 | -4/Factory | Entered Armory 30867 | -4/Armory | Loaded intel: 83 machine locations 30885 | -4/Armory | Found Exp. Targeting Computer 31141 | -4/Armory | Fabricated Assault Drone Bay? 31181 | -4/Armory | Fabricated G-67 Veteran? 31393 | -4/Armory | Build established: Hauler-Mutant 31468 | -4/Armory | P-70 Sage assimilated allied Veteran 7b 31481 | -4/Armory | P-70 Sage assimilated allied Veteran 7c 31715 | -4/Armory | Intercept squad dispatched 31720 | -4/Armory | Spotted Tracker 31723 | -4/Armory | Allies destroyed Tracker 31734 | -4/Armory | Spotted Combat Programmer 31734 | -4/Armory | Found Prototype Energy Gun 31734 | -4/Armory | Identified Immobilizer 31752 | -4/Armory | Destroyed Combat Programmer 31775 | -4/Armory | Fabricated G-67 Veteran? 31825 | -4/Armory | Intercept squad dispatched 31826 | -4/Armory | Spotted Tracker 31827 | -4/Armory | Spotted Tracker 31839 | -4/Armory | Destroyed Tracker 31845 | -4/Armory | Spotted Combat Programmer 31865 | -4/Armory | Spotted Combat Programmer 31874 | -4/Armory | Destroyed Tracker 31877 | -4/Armory | Destroyed Combat Programmer 31884 | -4/Armory | Destroyed Combat Programmer 31943 | -4/Armory | Discovered new exit (range 14) 32111 | -4/Armory | Fabricated Adv. Heavy Siege Treads (x2) 32130 | -4/Armory | Discovered new exit (range 4) 32157 | -4/Armory | First assault squad dispatched 32242 | -4/Armory | Fabricated Assault Drone Bay (x1) 32255 | -4/Armory | Entered Lab 32255 | -4/Lab | Discovered new exit (range 9) 32270 | -4/Lab | Hidden lab's door opened automatically 32270 | -4/Lab | Sensor layout match revealed 32271 | -4/Lab | Gained access to the hidden lab's interior 32277 | -4/Lab | Decrypted terminal 32277 | -4/Lab | Disabled Active System Cloaker 32297 | -4/Lab | Found Alien Artifact 32297 | -4/Lab | Identified Integrated Reactor 32297 | -4/Lab | Installed Integrated Reactor, increased core energy generation (+2%) 32308 | -4/Lab | Found Alien Artifact 32324 | -4/Lab | MAIN.C forces arrive to investigate 32346 | -4/Lab | Found Alien Artifact 32380 | -4/Lab | Found Prototype Energy Gun 32380 | -4/Lab | Identified Hyp. EM Gauss Rifle 32385 | -4/Lab | Found Prototype Energy Cannon 32385 | -4/Lab | Identified Warp Cannon 32409 | -4/Lab | Decrypted terminal 32409 | -4/Lab | Acquired modification code for an L2 power cell 32435 | -4/Lab | Found Prototype Special Weapon 32435 | -4/Lab | Identified Gui. Remote Datajack 32473 | -4/Lab | Found Prototype Protection 32473 | -4/Lab | Identified Exp. Powered Armor 32486 | -4/Lab | Found Deep Network Scanner 32623 | -4/Lab | Found Alien Artifact 32651 | -4/Lab | Entered Research 32651 | -3/Research | Evolved 2 slots: Weapon x2 32652 | -3/Research | Identified exit to Quarantine 32652 | -3/Research | Identified exit to Research 32653 | -3/Research | Loaded intel: 102 machine locations 32654 | -3/Research | Loaded intel: 62 non-interactive machine locations 32655 | -3/Research | Loaded intel: 20 terminal locations 32781 | -3/Research | Identified Transdimensional Reconstructor (x2) 32781 | -3/Research | Identified Core Expander 32781 | -3/Research | Installed Core Expander, added new Propulsion slot 32962 | -3/Research | Destroyed B-90 Cyclops 33008 | -3/Research | Build established: Scavenger-Executioner 33048 | -3/Research | Fabricated Hcp. Storage Unit (x1) 33065 | -3/Research | Fabricated Hcp. Storage Unit (x1) 33127 | -3/Research | Entered Quarantine 33128 | -3/Quarantine | Maximum security lockdown engaged 33128 | -3/Quarantine | Loaded intel: 77 machine locations 33167 | -3/Quarantine | Found Alien Artifact 33167 | -3/Quarantine | Identified Subatomic Replicator 33222 | -3/Quarantine | Spotted Alpha 7 33225 | -3/Quarantine | Destroyed Alpha 7 33274 | -3/Quarantine | Found Alien Launcher 33274 | -3/Quarantine | Identified Sigix Terminator 33276 | -3/Quarantine | Used Subatomic Replicator to create Alien Launcher 33279 | -3/Quarantine | Identified Supercharged Sigix Terminator 33343 | -3/Quarantine | Lost 5 parts (1p2n1u1w) 33344 | -3/Quarantine | Destroyed 27 combat bots 33381 | -3/Quarantine | Scanned by Researcher 33382 | -3/Quarantine | Destroyed Investigator 33454 | -3/Quarantine | Destroyed 27 combat bots 33464 | -3/Quarantine | Lost 5 parts (3n1u1w) 33534 | -3/Quarantine | Warped through subspace 33563 | -3/Quarantine | Lost 4 parts (2n1u1w) 33746 | -3/Quarantine | Destroyed 37 combat bots 33776 | -3/Quarantine | Discovered exit to Research (range 5) 33789 | -3/Quarantine | Core integrity fell below 50% 33794 | -3/Quarantine | Core integrity fell below 20% 33795 | -3/Quarantine | Entered Research 33795 | -2/Research | Evolved 2 slots: Utility x2 33796 | -2/Research | Loaded intel: 97 machine locations 33815 | -2/Research | Identified exit to Testing 33818 | -2/Research | Lost 13 parts (6n5u2w) 33850 | -2/Research | Garrison activated, responded to threat 33872 | -2/Research | Discovered new exit (range 16) 34024 | -2/Research | Garrison activated, responded to threat 34074 | -2/Research | First assault squad dispatched 34252 | -2/Research | Entered Access 34252 | -1/Access | Accompanied by 1 ally 34252 | -1/Access | Evolved 2 slots: Utility x2 34253 | -1/Access | Loaded intel: 107 machine locations 34457 | -1/Access | Energy Cycler disabled 34500 | -1/Access | Found Quantum Capacitor 34540 | -1/Access | First assault squad dispatched 34571 | -1/Access | Garrison activated, responded to threat 34628 | -1/Access | Discovered new exit (range 8) 34639 | -1/Access | Entered Command 34640 | -1/Command | Loaded intel: 66 machine locations 34919 | -1/Command | Spotted Combat Programmer 34922 | -1/Command | Spotted Combat Programmer 34927 | -1/Command | Spotted M Guard 34928 | -1/Command | Destroyed M Guard 34940 | -1/Command | Destroyed M Guard 35043 | -1/Command | Destroyed all MAIN.C guards 35049 | -1/Command | Found Prototype Energy Cannon 35056 | -1/Command | Found Prototype Special Weapon 35066 | -1/Command | Found Exp. Focal Shield 35099 | -1/Command | Found Prototype Device 35099 | -1/Command | Identified AEGIS Remote Shield 35113 | -1/Command | Found Prototype Protection 35113 | -1/Command | Identified Hvy. Regenerative Plating 35149 | -1/Command | Found Exp. Targeting Computer 35154 | -1/Command | Found Zero-point Reactor 35160 | -1/Command | Found Zero-point Reactor 35168 | -1/Command | First assault squad dispatched 35181 | -1/Command | Found Prototype Launcher 35181 | -1/Command | Identified Adv. Micro-nuke Launcher 35209 | -1/Command | Found Hellfire Missile Launcher 35276 | -1/Command | Identified EMDS 35288 | -1/Command | Found Thermal Barrier 35334 | -1/Command | Met MAIN.C 35334 | -1/Command | 0b10 Conduit disabled 35365 | -1/Command | System corruption reached 10% 35391 | -1/Command | Destroyed MAIN.C Shell 35394 | -1/Command | MAIN.C activated Command garrisons 35395 | -1/Command | Identified Exp. Remote Datajack 35398 | -1/Command | Hacked MAIN.C using A7's code 35447 | -1/Command | Destroyed MAIN.C 35769 | -1/Command | Spotted B-99 Colossus 35960 | -1/Command | Build established: Scavenger-Mutant 36031 | -1/Command | Found Unknown Protection 36031 | -1/Command | Identified Hvy. Insulated Plating 36230 | -1/Command | Discovered new exit (range 10) 36607 | -1/Command | Found Prototype Ballistic Gun 36607 | -1/Command | Identified Multirail 36638 | -1/Command | Found Exp. Targeting Computer 36773 | -1/Command | Build established: Scavenger-Executioner 36997 | -1/Command | Found Adv. Kinecellerator 37000 | -1/Command | Discovered new exit (range 8) 37002 | -1/Command | Found Exp. Core Analyzer 37083 | -1/Command | Build established: Scavenger-Mutant 37240 | -1/Command | Spotted B-99 Colossus 37740 | -1/Command | Phase Generator disabled 38914 | -1/Command | Spotted Alpha 7 38922 | -1/Command | Destroyed Alpha 7 39053 | -1/Command | Found Exp. Targeting Computer 39412 | -1/Command | Build established: Scavenger-Executioner 39675 | -1/Command | Found Zero-point Reactor 40054 | -1/Command | Build established: Scavenger-Mutant 40556 | -1/Command | Destroyed B-99 Colossus 40705 | -1/Command | Crushed by falling debris 40777 | -1/Command | Crushed by falling debris 40791 | -1/Command | Crushed by falling debris 40802 | -1/Command | Crushed by falling debris 40825 | -1/Command | Crushed by falling debris 40844 | -1/Command | Discovered new exit (range 2) 40938 | -1/Command | Entered Access_0 40939 | -1/Access_0 | Loaded intel: 46 machine locations 40939 | -1/Access_0 | Met Architect 40958 | -1/Access_0 | Subspace Access Node disabled 41039 | -1/Access_0 | A6 warped into view 41050 | -1/Access_0 | Destroyed A6 41051 | -1/Access_0 | Lost 9 parts (1p1n3u4w) 41052 | -1/Access_0 | Found Med. Regenerative Plating 41092 | -1/Access_0 | Subspace Access Node disabled 41096 | -1/Access_0 | Spotted Enhanced Programmer 41111 | -1/Access_0 | Core integrity fell below 50% 41114 | -1/Access_0 | Subspace Access Node disabled 41122 | -1/Access_0 | Spotted Enhanced Programmer 41123 | -1/Access_0 | Spotted Enhanced Programmer 41136 | -1/Access_0 | Subspace Access Node disabled 41150 | -1/Access_0 | Core integrity fell below 20% 41169 | -1/Access_0 | A5 warped into view 41174 | -1/Access_0 | Destroyed by A5 with Heavy Tesla Rifle Last Messages --------------- 41151_ Penetrated by Quantum Shear. 41152_ Exp. Matter Compressor destroyed. 41152_ Hvy. Neutron Cannon destroyed. 41161_ System corrupted: Zero-point Reactor rejected. 41161_ Acquired Zero-point Reactor. 41161_ Quantum Shear penetrates Wall. 41163_ Enh. Nova Cannon destroyed. 41163_ Cld. Antigrav System destroyed. 41165_ Penetrated by HV Slug. 41165_ HV Slug penetrates Wall. 41165_ Penetrated by HV Slug. 41165_ Knocked back. 41167_ HV Slug penetrates Wall. 41167_ Penetrated by HV Slug. 41167_ HV Slug penetrates Wall. A5 warps into view. Found relevant data record, DESTROY_A5: \\CHHG 41171_ Penetrated by Quantum Shear. 41171_ Enhanced Programmer suffers critical hit. 41174_ Penetrated by Quantum Shear. Map ----- +----------------------------------------------------+ | ?????????????????????????????????????????????????? | | ?????????????????????????????????????????????????? | | ?????????????????????????????????????????????????? | | ?????????????????????????????????????????????????? | | ?????????????????????????????????????????????????? | | ?????????????????????????????????????????????????? | | ?????????????????????????????????????????????????? | | ?????????????????????????????????????????????????? | | ?????"????"??????????????????????????????????????? | | ??????????"??????????????????????????????????????# | | ?????"????"??????????????????????????????????????# | | ????????"""?????????????????????????????????????## | | ??????????????????????????????????????????????###" | | ??????????????????????????????????????????????# | | ???????????"?????"????????????????????????????# | | ?????????""?"""""?""??????????????????????????###" | | ?????????"?????????"??????????????????#######???## | | ?????????????????????????????????????? ###??# | | ?????????????????????????????????????? #??# | | ?????????"?????????"?????????????????? ???? | | ?????????""?"""""?""?????????????????? ?????? | | ???????????"?????"???????????????????# #??????? | | ???????????????????????????####?????#" #???????? | | ???????????????????????????#""####?## #????????? | | ????????????????????????###?# ### #????????# | | ??????????????????#####"#@### "" ##????#### | | ????????????????# #?#### ## | | ???????????????# #### # | | ???????????????# ## # p## "" " ###" | | ?????????????????# # " "### | | ???????????????# ####### #### | | ???????????????# ?????? # | | ???????????????# ????? # # ##""##""### | | ???????????????# ????? # "#####?###?? | | ???????????????#????? # "#?????????? | | ????????????????????? ##?????????? | | ??????????????????????### # #??????????? | | ???????????????????????? # # #??????????? | | ???????????????????????? # # #??????????? | | ???????????????????????? # # ##??????????? | | ???????????????????????? ??? # # ???????????? | | ??????????????????????????? ? ### ????????????? | | ??????????????????????????????##??# #????????????? | | ?????????????????????????????????? ?????????????? | | ?????????????????????????????????? ?????????????? | | ?????????????????????????????????????????????????? | | ?????????????????????????????????????????????????? | | ?????????????????????????????????????????????????? | | ?????????????????????????????????????????????????? | | ?????????????????????????????????????????????????? | +----------------------------------------------------+ Best States ------------- Heat Dissipation 200 Coolant Potential 260 Energy Generation 67 Energy Capacity 1490 Matter Stores 550 Matter Capacity 800 Sight Range 16 Robot Scan Range 22 Terrain Scan Range 24 Terrain Scan Density 210 Armor Coverage 3600 Resistance: KI 30 Resistance: TH 50 Resistance: EX 50 Resistance: EM 90 Propulsion Shielding 66 Weapon Shielding 90 Weapon Cycling 25 Phase Shifting 20 Evasion (%) 60 Targeting Accuracy 24 Target Analysis 8 Core Analysis 15 Armor Integrity Analysis 66 Recoil Reduction 4 Matter Filtering 50 Particle Charging 30 Offensive Hacking 10 Defensive Hacking 12 Item Schematics ----------------- Combat Drone Bay | -7/Data Miner | Free Lgt. Regenerative Plating | -7/Data Miner | Free Exp. Cesium-ion Thruster | -7/Data Miner | Free Exp. Transmission Jammer | -7/Data Miner | Free Exp. ECM Suite | -7/Data Miner | Free Proton Missile Launcher | -6/Extension | Hacked Assault Drone Bay | -5/Zhirov | Free Exp. Heat Sink | -5/Zhirov | Free Exp. Optical Array | -5/Zhirov | Free Imp. Arc Thrower | -5/Zhirov | Free Hcp. Storage Unit | -3/Research | Hacked Robot Schematics ------------------ S-27 Virus | -7/Data Miner | Free G-50 Soldier | -7/Data Miner | Free G-67 Veteran | -7/Data Miner | Free X-72 Disruptor | -7/Data Miner | Free I-36 Angel | -7/Data Miner | Free I-47 Archangel | -7/Data Miner | Free Fabricated ------------ Combat Drone Bay | x1 | -5/Factory G-67 Veteran | x3 | -5/Factory Assault Drone Bay | x1 | -4/Armory G-67 Veteran | x3 | -4/Armory G-67 Veteran | x3 | -4/Armory Adv. Heavy Siege Treads | x2 | -4/Armory | Preloaded Assault Drone Bay | x1 | -4/Armory Hcp. Storage Unit | x1 | -3/Research Hcp. Storage Unit | x1 | -3/Research Alien Tech Used ----------------- Integrated Dissipator Integrated Reactor Core Expander Subatomic Replicator Sigix Terminator Supercharged Sigix Terminator Transdimensional Reconstructor Achievements -------------- None Challenges ------------ None Game ------ Seed RiotHeatCarapace Manual? 0 Play Time 09:53:43 Cumulative 928.0 hours Start 2019.11.03 @ 12:12:34 End 2019.11.05 @ 19:06:44 Sessions 13 Manual Loads 0 Difficulty Rogue Special Mode None Game No. 363 Rogue 363 Adventurer 0 Explorer 0 Win Type - Total 242 Types 212/4/11/3/3/2/7 Lore% 97 Gallery% 98 Achievement% 91 Wizard Run 0 Options --------- ASCII 0 Keyboard 0 Movement Numpad Keybinds 0 Fullscreen 1 Font 18/Terminus Map View 76x50 Tactical HUD 1 Map Filters NONE Filters NONE Steam 1 RUN: 569f5449-5480-4442-aa1a-b42c6cbf6bd7